Workbook

Sheet Form
B1: =IF(AND(TIGMODEL>"",TIG=""),"TIG with 4mm glass ONLY (Special order, contact CS)",IF(AND(TIGMODEL>"",TIGBAL=1),"TIG is NOT Available",IF(TIG_NOTE>"",TIG_NOTE,""))) -> 
B2: =IF(AND(WSIZE>0,HSIZE>0),"Only Available At"&" "&WSIZE&" x "&HSIZE&IF(HCONTROL=1," or "&HSIZE2,""),"") ->  | H2: Select a Model
B3: =IF(Model_Select=1,ModelNo,"(Model"&" "&ModelNo&")") -> Select a Model | J3: ="Min. W:"&" "&MINW -> Min. W: 0 | N3: ="Max W:"&" "&MAXW -> Max W: 0
B4: =Description -> 0 | J4: ="Min. H:"&" "&MINH -> Min. H: 0 | N4: ="Max H:"&" "&MAXH -> Max H: 0 | P4: ="Max UI:"&" "&MAXUI -> Max UI: 0
B5: =IF(AND(W>0,H>0),(IF(ISERROR(VLOOKUP(1,Data!$A:$D,3,FALSE)),"",VLOOKUP(1,Data!$A:$D,3,FALSE))),"") ->  | H5: =IF(AND(W>0,H>0),(IF(ISERROR(VLOOKUP(1,Data!$A:$D,4,FALSE)),"",VLOOKUP(1,Data!$A:$D,4,FALSE))),"") ->  | N5: Exact Size | R5: =IF(AND(W>0,H>0),"DP:"&" "&DP,"") -> 
B6: =IF(AND(W>0,H>0),(IF(ISERROR(VLOOKUP(2,Data!$A:$D,3,FALSE)),"",VLOOKUP(2,Data!$A:$D,3,FALSE))),"") ->  | H6: =IF(AND(W>0,H>0),(IF(ISERROR(VLOOKUP(2,Data!$A:$D,4,FALSE)),"",VLOOKUP(2,Data!$A:$D,4,FALSE))),"") ->  | J6: Width: | N6: =IF(AND(RO=2,W>0),W-WCUTBACK,W) -> 0 | O6: =IF(AND(W>0,WSIZE>0,W<>WSIZE),"<< Width Not Available","") -> 
B7: =IF(AND(W>0,H>0),(IF(ISERROR(VLOOKUP(3,Data!$A:$D,3,FALSE)),"",VLOOKUP(3,Data!$A:$D,3,FALSE))),"") ->  | H7: =IF(AND(W>0,H>0),(IF(ISERROR(VLOOKUP(3,Data!$A:$D,4,FALSE)),"",VLOOKUP(3,Data!$A:$D,4,FALSE))),"") ->  | J7: Height: | N7: =IF(AND(RO=2,H>0),H-HCUTBACK,H) -> 0 | O7: =IF(AND(H>0,HSIZE>0,H<>HSIZE),"<< Height Not Available","") -> 
B8: =IF(AND(W>0,H>0),(IF(ISERROR(VLOOKUP(4,Data!$A:$D,3,FALSE)),"",VLOOKUP(4,Data!$A:$D,3,FALSE))),"") ->  | H8: =IF(AND(W>0,H>0),(IF(ISERROR(VLOOKUP(4,Data!$A:$D,4,FALSE)),"",VLOOKUP(4,Data!$A:$D,4,FALSE))),"") ->  | J8: =IF(BTYPE="Custom","CMR:","") ->  | N8: =IF(AND(W>0,H>0,BTYPE="Custom",CMR=0),"<< Enter CMR Location","") -> 
B9: =IF(AND(W>0,H>0),(IF(ISERROR(VLOOKUP(5,Data!$A:$D,3,FALSE)),"",VLOOKUP(5,Data!$A:$D,3,FALSE))),"") ->  | H9: =IF(AND(W>0,H>0),(IF(ISERROR(VLOOKUP(5,Data!$A:$D,4,FALSE)),"",VLOOKUP(5,Data!$A:$D,4,FALSE))),"") -> 
B10: =IF(AND(W>0,H>0),(IF(ISERROR(VLOOKUP(6,Data!$A:$D,3,FALSE)),"",VLOOKUP(6,Data!$A:$D,3,FALSE))),"") ->  | H10: =IF(AND(W>0,H>0),(IF(ISERROR(VLOOKUP(6,Data!$A:$D,4,FALSE)),"",VLOOKUP(6,Data!$A:$D,4,FALSE))),"") ->  | J10: =IF(ModelNo="3001","Reinf:","") ->  | N10: =IF(AND(W>0,H>0,REINFSELECT=1,ModelNo="3001"),"<< Must Select","") -> 
B11: =IF(AND(W>0,H>0),(IF(ISERROR(VLOOKUP(7,Data!$A:$D,3,FALSE)),"",VLOOKUP(7,Data!$A:$D,3,FALSE))),"") ->  | H11: =IF(AND(W>0,H>0),(IF(ISERROR(VLOOKUP(7,Data!$A:$D,4,FALSE)),"",VLOOKUP(7,Data!$A:$D,4,FALSE))),"") ->  | J11: Opening: | N11: =RO_OPTION -> 0
B12: =IF(AND(W>0,H>0),(IF(ISERROR(VLOOKUP(8,Data!$A:$D,3,FALSE)),"",VLOOKUP(8,Data!$A:$D,3,FALSE))),"") ->  | H12: =IF(AND(W>0,H>0),(IF(ISERROR(VLOOKUP(8,Data!$A:$D,4,FALSE)),"",VLOOKUP(8,Data!$A:$D,4,FALSE))),"") ->  | J12: Type:
B13: =IF(AND(W>0,H>0),(IF(ISERROR(VLOOKUP(9,Data!$A:$D,3,FALSE)),"",VLOOKUP(9,Data!$A:$D,3,FALSE))),"") ->  | H13: =IF(AND(W>0,H>0),(IF(ISERROR(VLOOKUP(9,Data!$A:$D,4,FALSE)),"",VLOOKUP(9,Data!$A:$D,4,FALSE))),"") ->  | J13: Screen:
B14: =IF(AND(W>0,H>0),(IF(ISERROR(VLOOKUP(10,Data!$A:$D,3,FALSE)),"",VLOOKUP(10,Data!$A:$D,3,FALSE))),"") ->  | H14: =IF(AND(W>0,H>0),(IF(ISERROR(VLOOKUP(10,Data!$A:$D,4,FALSE)),"",VLOOKUP(10,Data!$A:$D,4,FALSE))),"") ->  | J14: Glass: | O14: =GLASS_MESSAGE -> 0
B16: =IF(AND(W>0,H>0),(IF(ISERROR(VLOOKUP(11,Data!$A:$D,3,FALSE)),"",VLOOKUP(11,Data!$A:$D,3,FALSE))),"") ->  | H16: =IF(AND(W>0,H>0),(IF(ISERROR(VLOOKUP(11,Data!$A:$D,4,FALSE)),"",VLOOKUP(11,Data!$A:$D,4,FALSE))),"") ->  | M16: A Designated AC Sash is Used to Replace BOTH Top and Bottom Sashes When AC is in the Window
B17: =IF(AND(W>0,H>0),(IF(ISERROR(VLOOKUP(12,Data!$A:$D,3,FALSE)),"",VLOOKUP(12,Data!$A:$D,3,FALSE))),"") ->  | H17: =IF(AND(W>0,H>0),(IF(ISERROR(VLOOKUP(12,Data!$A:$D,4,FALSE)),"",VLOOKUP(12,Data!$A:$D,4,FALSE))),"") -> 
B18: =IF(AND(W>0,H>0),(IF(ISERROR(VLOOKUP(13,Data!$A:$D,3,FALSE)),"",VLOOKUP(13,Data!$A:$D,3,FALSE))),"") ->  | H18: =IF(AND(W>0,H>0),(IF(ISERROR(VLOOKUP(13,Data!$A:$D,4,FALSE)),"",VLOOKUP(13,Data!$A:$D,4,FALSE))),"") -> 
B19: =IF(AND(W>0,H>0),(IF(ISERROR(VLOOKUP(14,Data!$A:$D,3,FALSE)),"",VLOOKUP(14,Data!$A:$D,3,FALSE))),"") ->  | H19: =IF(AND(W>0,H>0),(IF(ISERROR(VLOOKUP(14,Data!$A:$D,4,FALSE)),"",VLOOKUP(14,Data!$A:$D,4,FALSE))),"") ->  | J19: AC Width: | N19: =IF(AND(W>0,H>0,ACWIDTH>0,ACSASHW>0,ACLINK=TRUE),ACSASHW,"") ->  | O19: =IF(AND(W>0,H>0,ACWIDTH>0,ACSASHW>0,ACLINK=TRUE),"<< AC Sash Width","") -> 
B20: =IF(AND(W>0,H>0),(IF(ISERROR(VLOOKUP(15,Data!$A:$D,3,FALSE)),"",VLOOKUP(15,Data!$A:$D,3,FALSE))),"") ->  | H20: =IF(AND(W>0,H>0),(IF(ISERROR(VLOOKUP(15,Data!$A:$D,4,FALSE)),"",VLOOKUP(15,Data!$A:$D,4,FALSE))),"") ->  | J20: AC Height: | N20: =IF(AND(W>0,H>0,ACHEIGHT>0,ACSASHH>0,ACLINK=TRUE),ACSASHH,"") ->  | O20: =IF(AND(W>0,H>0,ACHEIGHT>0,ACSASHW>0,ACLINK=TRUE),"<< AC Sash Height","") -> 
B21: =IF(AND(W>0,H>0),(IF(ISERROR(VLOOKUP(16,Data!$A:$D,3,FALSE)),"",VLOOKUP(16,Data!$A:$D,3,FALSE))),"") ->  | H21: =IF(AND(W>0,H>0),(IF(ISERROR(VLOOKUP(16,Data!$A:$D,4,FALSE)),"",VLOOKUP(16,Data!$A:$D,4,FALSE))),"") -> 
B22: =IF(AND(W>0,H>0),(IF(ISERROR(VLOOKUP(17,Data!$A:$D,3,FALSE)),"",VLOOKUP(17,Data!$A:$D,3,FALSE))),"") ->  | H22: =IF(AND(W>0,H>0),(IF(ISERROR(VLOOKUP(17,Data!$A:$D,4,FALSE)),"",VLOOKUP(17,Data!$A:$D,4,FALSE))),"") -> 
B23: =IF(AND(W>0,H>0),(IF(ISERROR(VLOOKUP(18,Data!$A:$D,3,FALSE)),"",VLOOKUP(18,Data!$A:$D,3,FALSE))),"") ->  | H23: =IF(AND(W>0,H>0),(IF(ISERROR(VLOOKUP(18,Data!$A:$D,4,FALSE)),"",VLOOKUP(18,Data!$A:$D,4,FALSE))),"") -> 
B24: =IF(AND(W>0,H>0),(IF(ISERROR(VLOOKUP(19,Data!$A:$D,3,FALSE)),"",VLOOKUP(19,Data!$A:$D,3,FALSE))),"") ->  | H24: =IF(AND(W>0,H>0),(IF(ISERROR(VLOOKUP(19,Data!$A:$D,4,FALSE)),"",VLOOKUP(19,Data!$A:$D,4,FALSE))),"") -> 

Sheet Balance (hidden)
AB1: BLOCK & TACKLE BALANCE CHART
D2: Glass Strength | F2: Weight Calculation | P2: Egress Calculation | Z2: TOP SASH | AE2: BOTTOM SASH
A3: 1 | B3: S | C3: =1.157*2 -> 2.314 | D3: Single Strength (2.5 mm) | F3: Model | G3: CDIM | H3: Bott. Sash Height | I3: Bottom Sash Weight | J3: Top Sash Weight | K3: Bal. Loc. | N3: EW | P3: Top Sash Height | Q3: =IF(J18>J19,J18-2.0625,0) -> 0 | T3: 9001 | U3: Length | V3: Weight/ft | W3: Weight | Z3: Sash Weight | AA3: Tube Length | AB3: Balance | AC3: Weight | AE3: Sash Weight | AF3: Tube Length | AG3: Balance | AH3: Weight
A4: 2 | B4: D | C4: =1.6*2 -> 3.2 | D4: Double Strength (3 mm) | F4: =ModelNo -> Select a Model | G4: =VLOOKUP(ModelNo,$F$5:$N$7,2,FALSE) ->  | H4: =VLOOKUP(ModelNo,$F$5:$N$7,3,FALSE) ->  | I4: =VLOOKUP(ModelNo,$F$5:$N$7,4,FALSE) ->  | J4: =VLOOKUP(ModelNo,$F$5:$N$7,5,FALSE) ->  | K4: =VLOOKUP(ModelNo,$F$5:$N$7,6,FALSE) ->  | L4: =VLOOKUP(ModelNo,$F$5:$N$7,7,FALSE) ->  | M4: =VLOOKUP(ModelNo,$F$5:$N$7,8,FALSE) ->  | N4: =VLOOKUP(ModelNo,$F$5:$N$7,9,FALSE) ->  | P4: Egress Height | Q4: =IF($Q$3=0,Frame_Height-H4-7.5,IF($Q$3>0,Frame_Height-$Q$3-7.5,0)) ->  | T4: Top Top Rail | U4: =(Frame_Width-4.875)/12 -> -0.40625 | V4: 0.341 | W4: =U4*V4 -> -0.13853125 | Z4: =TRUNC(TOP_WGT) ->  | AA4: =$Z$9 ->  | AB4: Number | AC4: Range | AE4: =TRUNC(BTM_WGT) ->  | AF4: =$AE$9 -> -4 | AG4: Number | AH4: Range
A5: 3 | B5: T | C5: =2.408*2 -> 4.816 | D5: Triple Strength (5 mm) | F5: P601 | G5: =Balance!$J$19 -> 0 | H5: =INT((Balance!$J$19-1.19)*32)/32 -> -1.21875 | I5: =$W$25 -> 0 | J5: =$W$24 -> 0 | N5: 5.9375 | P5: Egress Width | Q5: =Frame_Width-N4 ->  | T5: Top Bottom Rail | U5: =(Frame_Width-4.875)/12 -> -0.40625 | V5: 0.384 | W5: -0.156 | Z5: Balance Size | AA5: =IF(AND(AB5>0,AC5>0),AB5,0) ->  | AB5: =IF($AA$4<=6,6,0) ->  | AC5: =IF(AND(AB5=6,$Z$4>=2,$Z$4<=5),AB5&"A",0) ->  | AE5: Balance Size | AF5: =IF(AND(AG5>0,AH5>0),AG5,0) ->  | AG5: =IF($AF$4<=6,6,0) -> 6 | AH5: =IF(AND(AG5=6,$AE$4>=2,$AE$4<=5),AG5&"A",0) -> 
A6: 4 | B6: L | C6: =2.683*2 -> 5.366 | D6: Laminated | F6: 9001 | G6: =Balance!$J$19 -> 0 | H6: =INT((Balance!$J$19-1.19)*32)/32 -> -1.21875 | I6: =$W$25 -> 0 | J6: =$W$24 -> 0 | N6: 5.9375 | P6: Egress Area | Q6: =ROUND(((EH*EW)/144),3) ->  | T6: Top Stile | U6: =(2*(Balance!$J$18-2.19))/12 -> -0.365 | V6: 0.311 | W6: -0.113515 | Z6: =VLOOKUP((MAX(AA5:AA271)),AA5:AC271,3,FALSE) ->  | AC6: =IF(AND(AB6=6,$Z$4>=6,$Z$4<=9),AB6&"B",0) ->  | AE6: =VLOOKUP((MAX(AF5:AF271)),AF5:AH271,3,FALSE) ->  | AG6: 6 | AH6: =IF(AND(AG6=6,$AE$4>=6,$AE$4<=9),AG6&"B",0) -> 
A7: 5 | B7: STG | C7: =1.157*3 -> 3.471 | D7: Triple IG Single Strength | F7: 3001 | G7: =CDIM3001 -> 0 | H7: =CDIM3001-0.625 -> -0.625 | I7: =BSW_3001 -> 0 | J7: =TSW_3001 -> 0 | N7: 5.25 | T7: Keeper Rail Reinf. | U7: =IF((INT((Frame_Width-9.875)/2)*2)>6,(INT((Frame_Width-9.875)/2)*2)/12,0) -> 0 | V7: 0.039 | W7: 0 | AC7: =IF(AND(AB7=6,$Z$4>=10,$Z$4<=12),AB7&"C",0) ->  | AG7: 6 | AH7: =IF(AND(AG7=6,$AE$4>=10,$AE$4<=12),AG7&"C",0) -> 
A8: 6 | B8: TDG | C8: =1.6*3 -> 4.8 | D8: Triple IG Double Strength | T8: Keeper Bead | U8: =(Frame_Width-6.072)/12 -> -0.506 | V8: 0.097 | W8: -0.049082 | Z8: Top Tube length | AC8: =IF(AND(AB8=6,$Z$4>=13,$Z$4<=15),AB8&"D",0) ->  | AE8: Bott. Tube Length | AG8: 6 | AH8: =IF(AND(AG8=6,$AE$4>=13,$AE$4<=15),AG8&"D",0) -> 
D9: 2 | T9: Top Glass | U9: =(Balance!$J$21*Balance!$J$23)/144 -> 0.1851738824 | V9: =$C$10 -> 3.2 | W9: 0.5925564236 | Y9: =ModelNo -> Select a Model | Z9: =VLOOKUP(Y9,Y10:Z12,2,FALSE) ->  | AC9: =IF(AND(AB9=6,$Z$4>=16,$Z$4<=20),AB9&"E",0) ->  | AD9: =ModelNo -> Select a Model | AE9: =(INT(INT((Frame_Height/2-2.75)+0.25)/2)*2) -> -4 | AG9: 6 | AH9: =IF(AND(AG9=6,$AE$4>=16,$AE$4<=20),AG9&"E",0) -> 
C10: =VLOOKUP(Glass,A3:C8,3,FALSE) -> 3.2 | D10: =VLOOKUP(Glass,A3:C8,2,FALSE) -> D | H10: W | J10: 9001 | T10: Top Spacer | U10: =((Balance!$J$21*2)+(Balance!$J$23*2))/12 -> -1.78125 | V10: 0.0536 | W10: -0.095475 | Y10: 9001 | Z10: =IF(J18>=Frame_Height/2-0.07,(INT(INT((Frame_Height/2-4.75)+0.25)/2))*2,(INT(INT((J18-4.75)+0.25)/2))*2) -> -6 | AC10: =IF(AND(AB10=6,$Z$4>=21,$Z$4<=24,ModelNo="9001"),"Dbl."&AB10&"C",0) ->  | AD10: 9001 | AE10: =(INT(INT((Frame_Height/2-2.75)+0.25)/2)*2) -> -4 | AG10: 6 | AH10: =IF(AND(AG10=6,$AE$4>=21,$AE$4<=24,ModelNo="9001"),"Dbl."&AG10&"C",0) -> 
H11: =IF(TYPE=1,H10,IF(TYPE= "",H10," ")) -> W | I11: 1 | J11: =Frame_Height/2 -> 0 | K11: =TRUNC(J11*16+0.5)/16 -> 0 | T11: Top Hardware | U11: 1 | V11: 0.2 | W11: 0.2 | Y11: 3001 | Z11: =IF(DDIM3001>=(Frame_Height/2),FLOOR((Frame_Height/2)-4.75,2),FLOOR(DDIM3001-4.75,2)) -> -6 | AC11: =IF(AND(AB11=6,$Z$4>=25,$Z$4<=30,ModelNo="9001"),"Dbl."&AB11&"D",0) ->  | AD11: 3001 | AE11: =FLOOR(Frame_Height/2-2.25,2) -> -4 | AG11: 6 | AH11: =IF(AND(AG11=6,$AE$4>=25,$AE$4<=30,ModelNo="9001"),"Dbl."&AG11&"D",0) -> 
D12: Type | H12: =IF(TYPE=5,H10,IF(TYPE=2,IF(Frame_Height>=54.5,IF(Frame_Height<72.5,H10,""),""),"")) ->  | I12: 2 | J12: =CEILING(((Frame_Height/5-0.24)*3-0.03125),0.0625) -> -0.75 | K12: -0.6875 | L12: 5 | T12: Top Handle Bead | U12: =(Frame_Width-6.072)/12 -> -0.506 | V12: 0.097 | W12: -0.049082 | Y12: P601 | Z12: =IF(J18>=Frame_Height/2-0.07,(INT(INT((Frame_Height/2-4.75)+0.25)/2))*2,(INT(INT((J18-4.75)+0.25)/2))*2) -> -6 | AC12: =IF(AND(AB12=6,$Z$4>=31,$Z$4<=40,ModelNo="9001"),"Dbl."&AB12&"E",0) ->  | AG12: 6 | AH12: =IF(AND(AG12=6,$AE$4>=31,$AE$4<=40,ModelNo="9001"),"Dbl."&AG12&"E",0) -> 
C13: 1 | D13: =IF(TYPE1>"",TYPE1,"") ->  | H13: =IF(TYPE=6,H10,IF(AND(TYPE=2,OR(Frame_Height<54.5,Frame_Height>=72.5)),H10,"")) ->  | J13: =TRUNC((Frame_Height/3-0.62)*32+0.5)/16 -> -1.1875 | K13: -1.125 | L13: 6 | T13: Top Vertical Beads | U13: =((Balance!$J$18-3.387)*2)/12 -> -0.5645 | V13: 0.097 | W13: -0.0547565 | AB13: =IF(AND($AA$4<=8,$AA$4>6),8,0) ->  | AC13: =IF(AND(AB13=8,$Z$4>=2,$Z$4<=6),AB13&"A",0) ->  | AG13: =IF(AND($AF$4<=8,$AF$4>6),8,0) -> 0 | AH13: =IF(AND(AG13=8,$AE$4>=2,$AE$4<=6),AG13&"A",0) -> 
C14: 2 | D14: =IF(TYPE2>"",TYPE2,"") ->  | H14: =IF(TYPE=7,H10,IF(TYPE=3,IF(Frame_Height>=54.5,IF(Frame_Height<72.5,H10,""),""),"")) ->  | I14: 3 | J14: =TRUNC((Frame_Height/5+0.38)*32+0.5)/16 -> 0.75 | K14: 0.75 | L14: 7 | T14: Bottom Top Rail | U14: =(Frame_Width-3.875)/12 -> -0.3229166667 | V14: 0.428 | W14: -0.1382083333 | AC14: =IF(AND(AB14=8,$Z$4>=7,$Z$4<=10),AB14&"B",0) ->  | AG14: 0 | AH14: =IF(AND(AG14=8,$AE$4>=7,$AE$4<=10),AG14&"B",0) -> 
C15: 3 | D15: =IF(TYPE3>"",TYPE3,"") ->  | H15: =IF(TYPE=8,H10,IF(AND(TYPE=3,OR(Frame_Height<54.5,Frame_Height>=72.5)),H10,"")) ->  | J15: =TRUNC((Frame_Height/3+1.3)*16+0.5)/16 -> 1.3125 | K15: 1.3125 | L15: 8 | T15: Bottom Bottom Rail | U15: =(Frame_Width-3.875)/12 -> -0.3229166667 | V15: 0.443 | W15: -0.1430520833 | AC15: =IF(AND(AB15=8,$Z$4>=11,$Z$4<=13),AB15&"C",0) ->  | AG15: 0 | AH15: =IF(AND(AG15=8,$AE$4>=11,$AE$4<=13),AG15&"C",0) -> 
C16: 4 | D16: =IF(TYPE4>"",TYPE4,"") ->  | H16: =IF(TYPE=4,H10,"") ->  | I16: 4 | J16: =CMR -> 0 | K16: 0 | T16: Bottom Stile | U16: =(2*(Balance!$J$19-1.19))/12 -> -0.1983333333 | V16: 0.378 | W16: -0.07497 | AC16: =IF(AND(AB16=8,$Z$4>=14,$Z$4<=15),AB16&"D",0) ->  | AG16: 0 | AH16: =IF(AND(AG16=8,$AE$4>=14,$AE$4<=15),AG16&"D",0) -> 
C17: 1 | D17: =VLOOKUP(TYPE,C13:D16,2,FALSE) ->  | T17: Lock Rail Reinf. | U17: =IF((INT((Frame_Width-8.197)/2)*2)>6,(INT((Frame_Width-8.197)/2)*2)/12,0) -> 0 | V17: 0.3184 | W17: 0 | AC17: =IF(AND(AB17=8,$Z$4>=16,$Z$4<=18),AB17&"E",0) ->  | AG17: 0 | AH17: =IF(AND(AG17=8,$AE$4>=16,$AE$4<=18),AG17&"E",0) -> 
H18: Dim.,"D" | I18: = | J18: =IF(H11=H10,K11,IF(H12=H10,K12,IF(H13=H10,K13,IF(H14=H10,K14,IF(H15=H10,K15,IF(H16=H10,K16,K11)))))) -> 0 | T18: Bottom Stile Reinf. | U18: 0 | V18: 0 | W18: 0 | AC18: =IF(AND(AB18=8,$Z$4>=19,$Z$4<=20,ModelNo="9001"),"Dbl."&AB18&"B",0) ->  | AG18: 0 | AH18: =IF(AND(AG18=8,$AE$4>=19,$AE$4<=20,ModelNo="9001"),"Dbl."&AG18&"B",0) -> 
D19: Opening | H19: Dim.,"C" | I19: = | J19: =Frame_Height-J18 -> 0 | T19: Bottom Glass | U19: =(Balance!$J$22*Balance!$J$24)/144 -> 0.1851738824 | V19: =$C$10 -> 3.2 | W19: 0.5925564236 | AC19: =IF(AND(AB19=8,$Z$4>=21,$Z$4<=26,ModelNo="9001"),"Dbl."&AB19&"C",0) ->  | AG19: 0 | AH19: =IF(AND(AG19=8,$AE$4>=21,$AE$4<=26,ModelNo="9001"),"Dbl."&AG19&"C",0) -> 
C20: 1 | D20: Exact Size | T20: Bottom Spacer | U20: =((Balance!$J$22*2)+(Balance!$J$24*2))/12 -> -1.78125 | V20: 0.0536 | W20: -0.095475 | AC20: =IF(AND(AB20=8,$Z$4>=27,$Z$4<=32,ModelNo="9001"),"Dbl."&AB20&"D",0) ->  | AG20: 0 | AH20: =IF(AND(AG20=8,$AE$4>=27,$AE$4<=32,ModelNo="9001"),"Dbl."&AG20&"D",0) -> 
C21: 2 | D21: Rough Opening | I21: Top Glass Width | J21: =TRUNC((Frame_Width-6.75)*32+0.5)/32 -> -6.71875 | T21: Bottom Hardware | U21: 1 | V21: 0.36 | W21: 0.36 | AC21: =IF(AND(AB21=8,$Z$4>=33,$Z$4<=36,ModelNo="9001"),"Dbl."&AB21&"E",0) ->  | AG21: 0 | AH21: =IF(AND(AG21=8,$AE$4>=33,$AE$4<=36,ModelNo="9001"),"Dbl."&AG21&"E",0) -> 
C22: 1 | D22: =VLOOKUP(RO,C20:D21,2,FALSE) -> Exact Size | I22: Bottom Glass Width | J22: =TRUNC((Frame_Width-6.75)*32+0.5)/32 -> -6.71875 | T22: Bott. Horz. Beads | U22: =((Frame_Width-6.072)*2)/12 -> -1.012 | V22: 0.097 | W22: -0.098164 | AB22: =IF(AND($AA$4<=10,$AA$4>8),10,0) ->  | AC22: =IF(AND(AB22=10,$Z$4>=1,$Z$4<=6),AB22&"A",0) ->  | AG22: =IF(AND($AF$4<=10,$AF$4>8),10,0) -> 0 | AH22: =IF(AND(AG22=10,$AE$4>=1,$AE$4<=6),AG22&"A",0) -> 
I23: Top Glass Height | J23: =TRUNC((J18-4.004)*32+0.5)/32 -> -3.96875 | T23: Bottom Vert. Beads | U23: =((Balance!$J$19-3.387)*2)/12 -> -0.5645 | V23: 0.097 | W23: -0.0547565 | AC23: =IF(AND(AB23=10,$Z$4>=7,$Z$4<=10),AB23&"B",0) ->  | AG23: 0 | AH23: =IF(AND(AG23=10,$AE$4>=7,$AE$4<=10),AG23&"B",0) -> 
C24: =IF(OR(ModelNo="0100",ModelNo="01HP",ModelNo="0102",ModelNo="0103",ModelNo="0104",ModelNo="0109",ModelNo="0151",ModelNo="0152",ModelNo="0153",ModelNo="0154",ModelNo="0155",ModelNo="0170",ModelNo="0171",ModelNo="0172",ModelNo="0173",ModelNo="S174",ModelNo="S175",ModelNo="0179",ModelNo="0301"),1,0) -> 0 | D24: Screen | I24: Bottom Glass Height | J24: =TRUNC((J19-4.004)*32+0.5)/32 -> -3.96875 | V24: Top Sash | W24: =IF(OR(ModelNo="9001",ModelNo="P601"),(TRUNC((SUM(W4:W13))))+6.5,0) -> 0 | AC24: =IF(AND(AB24=10,$Z$4>=11,$Z$4<=13),AB24&"C",0) ->  | AG24: 0 | AH24: =IF(AND(AG24=10,$AE$4>=11,$AE$4<=13),AG24&"C",0) -> 
C25: 1 | D25: =IF(SCREEN1>"",SCREEN1,"") ->  | V25: Bottom Sash | W25: =IF(OR(ModelNo="9001",ModelNo="P601"),TRUNC((SUM(W14:W23))),0) -> 0 | AC25: =IF(AND(AB25=10,$Z$4>=14,$Z$4<=16),AB25&"D",0) ->  | AG25: 0 | AH25: =IF(AND(AG25=10,$AE$4>=14,$AE$4<=16),AG25&"D",0) -> 
C26: 2 | D26: =IF(SCREEN2>"",SCREEN2,"") ->  | H26: W | J26: 3001 | AC26: =IF(AND(AB26=10,$Z$4>=17,$Z$4<=19),AB26&"E",0) ->  | AG26: 0 | AH26: =IF(AND(AG26=10,$AE$4>=17,$AE$4<=19),AG26&"E",0) -> 
C27: 3 | D27: =IF(SCREEN3>"",SCREEN3,"") ->  | H27: =IF(TYPE=1,H26,IF(TYPE= "",H26," ")) -> W | I27: 1 | J27: =Frame_Height/2 -> 0 | K27: =TRUNC(J27*16+0.5)/16 -> 0 | AC27: =IF(AND(AB27=10,$Z$4=20,ModelNo="9001"),"Dbl."&AB27&"B",0) ->  | AG27: 0 | AH27: =IF(AND(AG27=10,$AE$4=20,ModelNo="9001"),"Dbl."&AG27&"B",0) -> 
C28: 1 | D28: =VLOOKUP(Screen_Type,C25:D27,2,FALSE) ->  | H28: =IF(TYPE=5,H26,IF(TYPE=2,IF(Frame_Height>=54.5,IF(Frame_Height<72.5,H26,""),""),"")) ->  | I28: 2 | J28: =CEILING(((Frame_Height/5-0.24)*3-0.03125),0.0625) -> -0.75 | K28: -0.6875 | L28: 5 | AC28: =IF(AND(AB28=10,$Z$4>=21,$Z$4<=26,ModelNo="9001"),"Dbl."&AB28&"C",0) ->  | AG28: 0 | AH28: =IF(AND(AG28=10,$AE$4>=21,$AE$4<=26,ModelNo="9001"),"Dbl."&AG28&"C",0) -> 
H29: =IF(TYPE=6,H26,IF(AND(TYPE=2,OR(Frame_Height<54.5,Frame_Height>=72.5)),H26,"")) ->  | J29: =TRUNC((Frame_Height/3-0.62)*32+0.5)/16 -> -1.1875 | K29: -1.125 | L29: 6 | T29: 3001 | U29: Length | V29: Weight/ft | W29: Weight | AC29: =IF(AND(AB29=10,$Z$4>=27,$Z$4<=32,ModelNo="9001"),"Dbl."&AB29&"D",0) ->  | AG29: 0 | AH29: =IF(AND(AG29=10,$AE$4>=27,$AE$4<=32,ModelNo="9001"),"Dbl."&AG29&"D",0) -> 
H30: =IF(TYPE=7,H26,IF(TYPE=3,IF(Frame_Height>=54.5,IF(Frame_Height<72.5,H26,""),""),"")) ->  | I30: 3 | J30: =TRUNC((Frame_Height/5+0.38)*32+0.5)/16 -> 0.75 | K30: 0.75 | L30: 7 | T30: Top Top Rail | U30: =(Frame_Width-4.125)/12 -> -0.34375 | V30: 0.297 | W30: =U30*V30 -> -0.10209375 | AC30: =IF(AND(AB30=10,$Z$4>=33,$Z$4<=38,ModelNo="9001"),"Dbl."&AB30&"E",0) ->  | AG30: 0 | AH30: =IF(AND(AG30=10,$AE$4>=33,$AE$4<=38,ModelNo="9001"),"Dbl."&AG30&"E",0) -> 
C31: 1 | D31: =IF(ModelNo="3001","Select Reinforcement","") ->  | H31: =IF(TYPE=8,H26,IF(AND(TYPE=3,OR(Frame_Height<54.5,Frame_Height>=72.5)),H26,"")) ->  | J31: =TRUNC((Frame_Height/3+1.3)*16+0.5)/16 -> 1.3125 | K31: 1.3125 | L31: 8 | T31: Top Bottom Rail | U31: =(Frame_Width-4.125)/12 -> -0.34375 | V31: 0.289 | W31: -0.09934375 | AB31: =IF(AND($AA$4<=12,$AA$4>10),12,0) ->  | AC31: =IF(AND(AB31=12,$Z$4>=3,$Z$4<=7),AB31&"A",0) ->  | AG31: =IF(AND($AF$4<=12,$AF$4>10),12,0) -> 0 | AH31: =IF(AND(AG31=12,$AE$4>=3,$AE$4<=7),AG31&"A",0) -> 
C32: 2 | D32: =IF(ModelNo="3001","Composite","") ->  | H32: =IF(TYPE=4,H26,"") ->  | I32: 4 | J32: =CMR -> 0 | K32: 0 | T32: Top Stile | U32: =(2*(DDIM3001-1.625))/12 -> -0.2708333333 | V32: 0.218 | W32: -0.05904166667 | AC32: =IF(AND(AB32=12,$Z$4>=8,$Z$4<=10),AB32&"B",0) ->  | AG32: 0 | AH32: =IF(AND(AG32=12,$AE$4>=8,$AE$4<=10),AG32&"B",0) -> 
C33: 3 | D33: =IF(ModelNo="3001","Steel","") ->  | T33: Keeper Rail Reinf. | U33: =(TRUNC(((Frame_Width-4.125)-2)/2)*2)/12 -> -0.5 | V33: =IF(OR(REINFSELECT=2,Frame_Width<48,Frame_Height<84),0.0516,IF(OR(REINFSELECT=3,Frame_Width>48,Frame_Height>84),0.3784,0)) -> 0.0516 | W33: -0.0258 | AC33: =IF(AND(AB33=12,$Z$4>=11,$Z$4<=16),AB33&"C",0) ->  | AG33: 0 | AH33: =IF(AND(AG33=12,$AE$4>=11,$AE$4<=16),AG33&"C",0) -> 
C34: 1 | D34: =VLOOKUP(REINFSELECT,C31:D33,2,FALSE) ->  | H34: Dim.,"D" | I34: = | J34: =IF(H27=H26,K27,IF(H28=H26,K28,IF(H29=H26,K29,IF(H30=H26,K30,IF(H31=H26,K31,IF(H32=H26,K32,K27)))))) -> 0 | T34: Top Stile Reinf | U34: =IF(OR(Frame_Width>48,Frame_Height>84,REINFORCEMENT="Steel"),((TRUNC(((DDIM3001-1.625)-8)/2)*2)/12)*2,0) -> 0 | V34: 0.456 | W34: 0 | AC34: =IF(AND(AB34=12,$Z$4>=17,$Z$4<=18),AB34&"D",0) ->  | AG34: 0 | AH34: =IF(AND(AG34=12,$AE$4>=17,$AE$4<=18),AG34&"D",0) -> 
H35: Dim.,"C" | I35: = | J35: =Frame_Height-J34 -> 0 | T35: Top Glass | U35: =(TGW_3001*TGH_3001)/144 -> 0.1285264757 | V35: =$C$10 -> 3.2 | W35: 0.4112847222 | AC35: =IF(AND(AB35=12,$Z$4>=19,$Z$4<=21),AB35&"E",0) ->  | AG35: 0 | AH35: =IF(AND(AG35=12,$AE$4>=19,$AE$4<=21),AG35&"E",0) -> 
T36: Top Spacer | U36: =((TGW_3001*2)+(TGH_3001*2))/12 -> -1.494791667 | V36: 0.0536 | W36: -0.08012083333 | AC36: =IF(AND(AB36=12,$Z$4>=22,$Z$4<=32,ModelNo="9001"),"Dbl."&AB36&"C",0) ->  | AG36: 0 | AH36: =IF(AND(AG36=12,$AE$4>=22,$AE$4<=32,ModelNo="9001"),"Dbl."&AG36&"C",0) -> 
I37: Top Glass Width | J37: =TRUNC((Frame_Width-5.8125)*16+0.5)/16 -> -5.75 | T37: Top Hardware | U37: 1 | V37: 0.4 | W37: 0.4 | AC37: =IF(AND(AB37=12,$Z$4>=33,$Z$4<=36,ModelNo="9001"),"Dbl."&AB37&"D",0) ->  | AG37: 0 | AH37: =IF(AND(AG37=12,$AE$4>=33,$AE$4<=36,ModelNo="9001"),"Dbl."&AG37&"D",0) -> 
I38: Bottom Glass Width | J38: =TRUNC((Frame_Width-4.8125)*16+0.5)/16 -> -4.75 | T38: Top Bead | U38: =(((Frame_Width-5.125)*2)+((DDIM3001-4.3125)*2))/12 -> -1.572916667 | V38: 0.072 | W38: -0.11325 | AC38: =IF(AND(AB38=12,$Z$4>=37,$Z$4<=42,ModelNo="9001"),"Dbl."&AB38&"E",0) ->  | AG38: 0 | AH38: =IF(AND(AG38=12,$AE$4>=37,$AE$4<=42,ModelNo="9001"),"Dbl."&AG38&"E",0) -> 
I39: Top Glass Height | J39: =TRUNC((J34-3.25)*32+0.5)/32 -> -3.21875 | T39: Bottom Top Rail | U39: =(Frame_Width-3.125)/12 -> -0.2604166667 | V39: 0.297 | W39: -0.07734375 | AB39: =IF(AND($AA$4<=14,$AA$4>12),14,0) ->  | AC39: =IF(AND(AB39=14,$Z$4>=3,$Z$4<=7),AB39&"A",0) ->  | AG39: =IF(AND($AF$4<=14,$AF$4>12),14,0) -> 0 | AH39: =IF(AND(AG39=14,$AE$4>=3,$AE$4<=7),AG39&"A",0) -> 
I40: Bottom Glass Height | J40: =TRUNC((J35-2.25)*32+0.5)/32 -> -2.21875 | T40: Bottom Bottom Rail | U40: =(Frame_Width-3.125)/12 -> -0.2604166667 | V40: 0.232 | W40: -0.06041666667 | AC40: =IF(AND(AB40=14,$Z$4>=8,$Z$4<=10),AB40&"B",0) ->  | AG40: 0 | AH40: =IF(AND(AG40=14,$AE$4>=8,$AE$4<=10),AG40&"B",0) -> 
T41: Bottom Stile | U41: =(2*(CDIM3001-0.625))/12 -> -0.1041666667 | V41: 0.219 | W41: -0.0228125 | AC41: =IF(AND(AB41=14,$Z$4>=11,$Z$4<=16),AB41&"C",0) ->  | AG41: 0 | AH41: =IF(AND(AG41=14,$AE$4>=11,$AE$4<=16),AG41&"C",0) -> 
T42: Bottom Rail Reinf. | U42: =(TRUNC(((Frame_Width-3.125)-6)/2)*2)/12 -> -0.6666666667 | V42: =IF(OR(REINFSELECT=2,Frame_Width<48,Frame_Height<84),0.0516,IF(OR(REINFSELECT=3,Frame_Width>48,Frame_Height>84),0.57,0)) -> 0.0516 | W42: -0.0344 | AC42: =IF(AND(AB42=14,$Z$4>=17,$Z$4<=19),AB42&"D",0) ->  | AG42: 0 | AH42: =IF(AND(AG42=14,$AE$4>=17,$AE$4<=19),AG42&"D",0) -> 
T43: Bottom Stile Reinf. | U43: =IF(OR(Frame_Width>48,Frame_Height>84,REINFORCEMENT="Steel"),((TRUNC((CDIM3001-2)/2)*2)/12)*2,0) -> 0 | V43: 0.456 | W43: 0 | AC43: =IF(AND(AB43=14,$Z$4>=20,$Z$4<=22),AB43&"E",0) ->  | AG43: 0 | AH43: =IF(AND(AG43=14,$AE$4>=20,$AE$4<=22),AG43&"E",0) -> 
T44: Bottom Glass | U44: =(BGW_3001*BGH_3001)/144 -> 0.07318793403 | V44: =$C$10 -> 3.2 | W44: 0.2342013889 | AC44: =IF(AND(AB44=14,$Z$4>=23,$Z$4<=25),AB44&"F",0) ->  | AG44: 0 | AH44: =IF(AND(AG44=14,$AE$4>=23,$AE$4<=25),AG44&"F",0) -> 
T45: Bottom Spacer | U45: =((BGW_3001*2)+(BGH_3001*2))/12 -> -1.161458333 | V45: 0.0536 | W45: -0.06225416667 | AC45: =IF(AND(AB45=14,$Z$4>=26,$Z$4<=28),AB45&"G",0) ->  | AG45: 0 | AH45: =IF(AND(AG45=14,$AE$4>=26,$AE$4<=28),AG45&"G",0) -> 
T46: Bottom Hardware | U46: 1 | V46: 0.36 | W46: 0.36 | AC46: =IF(AND(AB46=14,$Z$4>=29,$Z$4<=31),AB46&"H",0) ->  | AG46: 0 | AH46: =IF(AND(AG46=14,$AE$4>=29,$AE$4<=31),AG46&"H",0) -> 
T47: Bottom Bead | U47: =(((Frame_Width-4.125)*2)+((CDIM3001-3.3125)*2))/12 -> -1.239583333 | V47: 0.072 | W47: -0.08925 | AC47: =IF(AND(AB47=14,$Z$4>=32,$Z$4<=34),AB47&"I",0) ->  | AG47: 0 | AH47: =IF(AND(AG47=14,$AE$4>=32,$AE$4<=34),AG47&"I",0) -> 
W48: =IF(ModelNo="3001",TRUNC((SUM(W30:W38))),0) -> 0 | AC48: =IF(AND(AB48=14,$Z$4>=35,$Z$4<=38,ModelNo="9001"),"Dbl."&AB48&"D",0) ->  | AG48: 0 | AH48: =IF(AND(AG48=14,$AE$4>=35,$AE$4<=38,ModelNo="9001"),"Dbl."&AG48&"D",0) -> 
W49: =IF(ModelNo="3001",TRUNC((SUM(W39:W47))),0) -> 0 | AC49: =IF(AND(AB49=14,$Z$4>=39,$Z$4<=44,ModelNo="9001"),"Dbl."&AB49&"E",0) ->  | AG49: 0 | AH49: =IF(AND(AG49=14,$AE$4>=39,$AE$4<=44,ModelNo="9001"),"Dbl."&AG49&"E",0) -> 
AC50: =IF(AND(AB50=14,$Z$4>=45,$Z$4<=50,ModelNo="9001"),"Dbl."&AB50&"F",0) ->  | AG50: 0 | AH50: =IF(AND(AG50=14,$AE$4>=45,$AE$4<=50,ModelNo="9001"),"Dbl."&AG50&"F",0) -> 
AC51: =IF(AND(AB51=14,$Z$4>=51,$Z$4<=56,ModelNo="9001"),"Dbl."&AB51&"G",0) ->  | AG51: 0 | AH51: =IF(AND(AG51=14,$AE$4>=51,$AE$4<=56,ModelNo="9001"),"Dbl."&AG51&"G",0) -> 
H52: FALSE | AC52: =IF(AND(AB52=14,$Z$4>=57,$Z$4<=62,ModelNo="9001"),"Dbl."&AB52&"H",0) ->  | AG52: 0 | AH52: =IF(AND(AG52=14,$AE$4>=57,$AE$4<=62,ModelNo="9001"),"Dbl."&AG52&"H",0) -> 
H53: Model | I53: Head | J53: Sill | K53: Center of Astragal | L53: Top Sash Width | M53: Sash Height | AC53: =IF(AND(AB53=14,$Z$4>=63,$Z$4<=68,ModelNo="9001"),"Dbl."&AB53&"I",0) ->  | AG53: 0 | AH53: =IF(AND(AG53=14,$AE$4>=63,$AE$4<=68,ModelNo="9001"),"Dbl."&AG53&"I",0) -> 
H54: =ModelNo -> Select a Model | I54: =IF(ISERROR(VLOOKUP(ModelNo,ACTABLE,2,FALSE)),"",VLOOKUP(ModelNo,ACTABLE,2,FALSE)) ->  | J54: =IF(ISERROR(VLOOKUP(ModelNo,ACTABLE,3,FALSE)),"",VLOOKUP(ModelNo,ACTABLE,3,FALSE)) ->  | K54: =IF(ISERROR(VLOOKUP(ModelNo,ACTABLE,4,FALSE)),"",VLOOKUP(ModelNo,ACTABLE,4,FALSE)) ->  | L54: =IF(ISERROR(VLOOKUP(ModelNo,ACTABLE,5,FALSE)),"",VLOOKUP(ModelNo,ACTABLE,5,FALSE)) ->  | M54: =IF(ISERROR(VLOOKUP(ModelNo,ACTABLE,6,FALSE)),"",VLOOKUP(ModelNo,ACTABLE,6,FALSE)) ->  | AB54: =IF(AND($AA$4<=16,$AA$4>14),16,0) ->  | AC54: =IF(AND(AB54=16,$Z$4>=3,$Z$4<=7),AB54&"A",0) ->  | AG54: =IF(AND($AF$4<=16,$AF$4>14),16,0) -> 0 | AH54: =IF(AND(AG54=16,$AE$4>=3,$AE$4<=7),AG54&"A",0) -> 
H55: 9001 | I55: 2.5 | J55: 2.75 | L55: =Frame_Width-4.9375 -> -4.9375 | M55: =INT((Frame_Height-(I55+J55+0.5+ACHEIGHT))*16+0.5)/16 -> -5.75 | AC55: =IF(AND(AB55=16,$Z$4>=8,$Z$4<=10),AB55&"B",0) ->  | AG55: 0 | AH55: =IF(AND(AG55=16,$AE$4>=8,$AE$4<=10),AG55&"B",0) -> 
H56: P601 | I56: 2.5 | J56: 2.75 | L56: =Frame_Width-4.9375 -> -4.9375 | M56: =INT((Frame_Height-(I56+J56+0.5+ACHEIGHT))*16+0.5)/16 -> -5.75 | AC56: =IF(AND(AB56=16,$Z$4>=11,$Z$4<=16),AB56&"C",0) ->  | AG56: 0 | AH56: =IF(AND(AG56=16,$AE$4>=11,$AE$4<=16),AG56&"C",0) -> 
H57: 3001 | I57: 2.0625 | J57: 1.875 | L57: =Frame_Width-4.125 -> -4.125 | M57: =INT((Frame_Height-(I57+J57+0.5+ACHEIGHT))*16+0.5)/16 -> -4.4375 | AC57: =IF(AND(AB57=16,$Z$4>=17,$Z$4<=19),AB57&"D",0) ->  | AG57: 0 | AH57: =IF(AND(AG57=16,$AE$4>=17,$AE$4<=19),AG57&"D",0) -> 
AC58: =IF(AND(AB58=16,$Z$4>=20,$Z$4<=22),AB58&"E",0) ->  | AG58: 0 | AH58: =IF(AND(AG58=16,$AE$4>=20,$AE$4<=22),AG58&"E",0) -> 
AC59: =IF(AND(AB59=16,$Z$4>=23,$Z$4<=24),AB59&"F",0) ->  | AG59: 0 | AH59: =IF(AND(AG59=16,$AE$4>=23,$AE$4<=24),AG59&"F",0) -> 
H60: 1 | I60: 2 | J60: 3 | K60: 4 | L60: 5 | AC60: =IF(AND(AB60=16,$Z$4>=25,$Z$4<=28),AB60&"G",0) ->  | AG60: 0 | AH60: =IF(AND(AG60=16,$AE$4>=25,$AE$4<=28),AG60&"G",0) -> 
H61: Standard | I61: EnergyMaxx-4 | J61: EnergyMaxx-SC | K61: EnergyMaxx-7 | L61: EnergyMaxx-10 | AC61: =IF(AND(AB61=16,$Z$4>=29,$Z$4<=31),AB61&"H",0) ->  | AG61: 0 | AH61: =IF(AND(AG61=16,$AE$4>=29,$AE$4<=31),AG61&"H",0) -> 
G62: Outside Pane | H62: Clear | I62: SB60 | J62: SB60 | K62: SB60 | L62: SB60 | M62: =HLOOKUP(Package_Select,$H$60:$L$71,3,FALSE) -> Clear | AC62: =IF(AND(AB62=16,$Z$4>=32,$Z$4<=34),AB62&"I",0) ->  | AG62: 0 | AH62: =IF(AND(AG62=16,$AE$4>=32,$AE$4<=34),AG62&"I",0) -> 
G63: Middle Pane | H63: N/A | I63: N/A | J63: N/A | K63: Clear | L63: Clear | M63: =HLOOKUP(Package_Select,$H$60:$L$71,4,FALSE) -> N/A | AC63: =IF(AND(AB63=16,$Z$4>=35,$Z$4<=36,ModelNo="9001"),"Dbl."&AB63&"D",0) ->  | AG63: 0 | AH63: =IF(AND(AG63=16,$AE$4>=35,$AE$4<=36,ModelNo="9001"),"Dbl."&AG63&"D",0) -> 
G64: Inside Pane | H64: Clear | I64: Clear | J64: SB60 | K64: SB60 | L64: SB60 | M64: =HLOOKUP(Package_Select,$H$60:$L$71,5,FALSE) -> Clear | AC64: =IF(AND(AB64=16,$Z$4>=37,$Z$4<=44,ModelNo="9001"),"Dbl."&AB64&"E",0) ->  | AG64: 0 | AH64: =IF(AND(AG64=16,$AE$4>=37,$AE$4<=44,ModelNo="9001"),"Dbl."&AG64&"E",0) -> 
G65: Spacer | H65: SST | I65: SST | J65: SST | K65: SST | L65: SST | M65: =HLOOKUP(Package_Select,$H$60:$L$71,6,FALSE) -> SST | AC65: =IF(AND(AB65=16,$Z$4>=45,$Z$4<=48,ModelNo="9001"),"Dbl."&AB65&"F",0) ->  | AG65: 0 | AH65: =IF(AND(AG65=16,$AE$4>=45,$AE$4<=48,ModelNo="9001"),"Dbl."&AG65&"F",0) -> 
G66: Gas | H66: Air | I66: Argon | J66: Argon | K66: Argon | L66: Krypton | M66: =HLOOKUP(Package_Select,$H$60:$L$71,7,FALSE) -> Air | AC66: =IF(AND(AB66=16,$Z$4>=49,$Z$4<=56,ModelNo="9001"),"Dbl."&AB66&"G",0) ->  | AG66: 0 | AH66: =IF(AND(AG66=16,$AE$4>=49,$AE$4<=56,ModelNo="9001"),"Dbl."&AG66&"G",0) -> 
G67: R-Value | H67: 2 | I67: 3.85 | J67: 4 | K67: 6.67 | L67: 10 | M67: =HLOOKUP(Package_Select,$H$60:$L$71,8,FALSE) -> 2 | AC67: =IF(AND(AB67=16,$Z$4>=57,$Z$4<=62,ModelNo="9001"),"Dbl."&AB67&"H",0) ->  | AG67: 0 | AH67: =IF(AND(AG67=16,$AE$4>=57,$AE$4<=62,ModelNo="9001"),"Dbl."&AG67&"H",0) -> 
G68: U-Value | H68: 0.5 | I68: 0.26 | J68: 0.25 | K68: 0.15 | L68: 0.1 | M68: =HLOOKUP(Package_Select,$H$60:$L$71,9,FALSE) -> 0.5 | AC68: =IF(AND(AB68=16,$Z$4>=63,$Z$4<=68,ModelNo="9001"),"Dbl."&AB68&"I",0) ->  | AG68: 0 | AH68: =IF(AND(AG68=16,$AE$4>=63,$AE$4<=68,ModelNo="9001"),"Dbl."&AG68&"I",0) -> 
G69: Visible Light Transmit. | H69: 0.82 | I69: 0.72 | J69: 0.62 | K69: 0.57 | L69: 0.57 | M69: =HLOOKUP(Package_Select,$H$60:$L$71,10,FALSE) -> 0.82 | AA69: =IF(AND(AB69>0,AC69>0),AB69,0) ->  | AB69: =IF(AND($AA$4<=18,$AA$4>16),18,0) ->  | AC69: =IF(AND(AB69=18,$Z$4>=4,$Z$4<=9),AB69&"A",0) ->  | AF69: =IF(AND(AG69>0,AH69>0),AG69,0) ->  | AG69: =IF(AND($AF$4<=18,$AF$4>16),18,0) -> 0 | AH69: =IF(AND(AG69=18,$AE$4>=4,$AE$4<=9),AG69&"A",0) -> 
G70: UV Light Transmit. | H70: 0.63 | I70: 0.16 | J70: 0.05 | K70: 0.05 | L70: 0.05 | M70: =HLOOKUP(Package_Select,$H$60:$L$71,11,FALSE) -> 0.63 | AC70: =IF(AND(AB70=18,$Z$4>=10,$Z$4<=13),AB70&"B",0) ->  | AG70: 0 | AH70: =IF(AND(AG70=18,$AE$4>=10,$AE$4<=13),AG70&"B",0) -> 
G71: Solar Heat Gain | H71: 0.78 | I71: 0.39 | J71: 0.36 | K71: 0.33 | L71: 0.33 | M71: =HLOOKUP(Package_Select,$H$60:$L$71,12,FALSE) -> 0.78 | AC71: =IF(AND(AB71=18,$Z$4>=14,$Z$4<=18),AB71&"C",0) ->  | AG71: 0 | AH71: =IF(AND(AG71=18,$AE$4>=14,$AE$4<=18),AG71&"C",0) -> 
AC72: =IF(AND(AB72=18,$Z$4>=19,$Z$4<=21),AB72&"D",0) ->  | AG72: 0 | AH72: =IF(AND(AG72=18,$AE$4>=19,$AE$4<=21),AG72&"D",0) -> 
I73: Standard | AC73: =IF(AND(AB73=18,$Z$4>=22,$Z$4<=24),AB73&"E",0) ->  | AG73: 0 | AH73: =IF(AND(AG73=18,$AE$4>=22,$AE$4<=24),AG73&"E",0) -> 
I74: EnergyMaxx-4 | AC74: =IF(AND(AB74=18,$Z$4>=25,$Z$4<=26),AB74&"F",0) ->  | AG74: 0 | AH74: =IF(AND(AG74=18,$AE$4>=25,$AE$4<=26),AG74&"F",0) -> 
I75: EnergyMaxxSC | AC75: =IF(AND(AB75=18,$Z$4>=27,$Z$4<=29),AB75&"G",0) ->  | AG75: 0 | AH75: =IF(AND(AG75=18,$AE$4>=27,$AE$4<=29),AG75&"G",0) -> 
I76: EnergyMaxx7 | AC76: =IF(AND(AB76=18,$Z$4>=30,$Z$4<=32),AB76&"H",0) ->  | AG76: 0 | AH76: =IF(AND(AG76=18,$AE$4>=30,$AE$4<=32),AG76&"H",0) -> 
I77: EnergyMaxx-10 | AC77: =IF(AND(AB77=18,$Z$4>=33,$Z$4<=34),AB77&"I",0) ->  | AG77: 0 | AH77: =IF(AND(AG77=18,$AE$4>=33,$AE$4<=34),AG77&"I",0) -> 
I78: 1 | AC78: =IF(AND(AB78=18,$Z$4>=35,$Z$4<=36,ModelNo="9001"),"Dbl."&AB78&"C",0) ->  | AG78: 0 | AH78: =IF(AND(AG78=18,$AE$4>=35,$AE$4<=36,ModelNo="9001"),"Dbl."&AG78&"C",0) -> 
AC79: =IF(AND(AB79=18,$Z$4>=37,$Z$4<=42,ModelNo="9001"),"Dbl."&AB79&"D",0) ->  | AG79: 0 | AH79: =IF(AND(AG79=18,$AE$4>=37,$AE$4<=42,ModelNo="9001"),"Dbl."&AG79&"D",0) -> 
AC80: =IF(AND(AB80=18,$Z$4>=43,$Z$4<=48,ModelNo="9001"),"Dbl."&AB80&"E",0) ->  | AG80: 0 | AH80: =IF(AND(AG80=18,$AE$4>=43,$AE$4<=48,ModelNo="9001"),"Dbl."&AG80&"E",0) -> 
AC81: =IF(AND(AB81=18,$Z$4>=49,$Z$4<=52,ModelNo="9001"),"Dbl."&AB81&"F",0) ->  | AG81: 0 | AH81: =IF(AND(AG81=18,$AE$4>=49,$AE$4<=52,ModelNo="9001"),"Dbl."&AG81&"F",0) -> 
AC82: =IF(AND(AB82=18,$Z$4>=53,$Z$4<=58,ModelNo="9001"),"Dbl."&AB82&"G",0) ->  | AG82: 0 | AH82: =IF(AND(AG82=18,$AE$4>=53,$AE$4<=58,ModelNo="9001"),"Dbl."&AG82&"G",0) -> 
AC83: =IF(AND(AB83=18,$Z$4>=59,$Z$4<=64,ModelNo="9001"),"Dbl."&AB83&"H",0) ->  | AG83: 0 | AH83: =IF(AND(AG83=18,$AE$4>=59,$AE$4<=64,ModelNo="9001"),"Dbl."&AG83&"H",0) -> 
AC84: =IF(AND(AB84=18,$Z$4>=65,$Z$4<=68,ModelNo="9001"),"Dbl."&AB84&"I",0) ->  | AG84: 0 | AH84: =IF(AND(AG84=18,$AE$4>=65,$AE$4<=68,ModelNo="9001"),"Dbl."&AG84&"I",0) -> 
AB85: =IF(AND($AA$4<=20,$AA$4>18),20,0) ->  | AC85: =IF(AND(AB85=20,$Z$4>=5,$Z$4<=10),AB85&"A",0) ->  | AG85: =IF(AND($AF$4<=20,$AF$4>18),20,0) -> 0 | AH85: =IF(AND(AG85=20,$AE$4>=5,$AE$4<=10),AG85&"A",0) -> 
AC86: =IF(AND(AB86=20,$Z$4>=11,$Z$4<=14),AB86&"B",0) ->  | AG86: 0 | AH86: =IF(AND(AG86=20,$AE$4>=11,$AE$4<=14),AG86&"B",0) -> 
AC87: =IF(AND(AB87=20,$Z$4>=15,$Z$4<=18),AB87&"C",0) ->  | AG87: 0 | AH87: =IF(AND(AG87=20,$AE$4>=15,$AE$4<=18),AG87&"C",0) -> 
AC88: =IF(AND(AB88=20,$Z$4>=19,$Z$4<=22),AB88&"D",0) ->  | AG88: 0 | AH88: =IF(AND(AG88=20,$AE$4>=19,$AE$4<=22),AG88&"D",0) -> 
AC89: =IF(AND(AB89=20,$Z$4>=23,$Z$4<=26),AB89&"E",0) ->  | AG89: 0 | AH89: =IF(AND(AG89=20,$AE$4>=23,$AE$4<=26),AG89&"E",0) -> 
AC90: =IF(AND(AB90=20,$Z$4>=27,$Z$4<=30),AB90&"F",0) ->  | AG90: 0 | AH90: =IF(AND(AG90=20,$AE$4>=27,$AE$4<=30),AG90&"F",0) -> 
AC91: =IF(AND(AB91=20,$Z$4>=31,$Z$4<=34),AB91&"G",0) ->  | AG91: 0 | AH91: =IF(AND(AG91=20,$AE$4>=31,$AE$4<=34),AG91&"G",0) -> 
AC92: =IF(AND(AB92=20,$Z$4>=35,$Z$4<=37),AB92&"H",0) ->  | AG92: 0 | AH92: =IF(AND(AG92=20,$AE$4>=35,$AE$4<=37),AG92&"H",0) -> 
AC93: =IF(AND(AB93=20,$Z$4>=38,$Z$4<=40),AB93&"I",0) ->  | AG93: 0 | AH93: =IF(AND(AG93=20,$AE$4>=38,$AE$4<=40),AG93&"I",0) -> 
AC94: =IF(AND(AB94=20,$Z$4>=41,$Z$4<=44,ModelNo="9001"),"Dbl."&AB94&"D",0) ->  | AG94: 0 | AH94: =IF(AND(AG94=20,$AE$4>=41,$AE$4<=44,ModelNo="9001"),"Dbl."&AG94&"D",0) -> 
AC95: =IF(AND(AB95=20,$Z$4>=45,$Z$4<=52,ModelNo="9001"),"Dbl."&AB95&"E",0) ->  | AG95: 0 | AH95: =IF(AND(AG95=20,$AE$4>=45,$AE$4<=52,ModelNo="9001"),"Dbl."&AG95&"E",0) -> 
AC96: =IF(AND(AB96=20,$Z$4>=53,$Z$4<=60,ModelNo="9001"),"Dbl."&AB96&"F",0) ->  | AG96: 0 | AH96: =IF(AND(AG96=20,$AE$4>=53,$AE$4<=60,ModelNo="9001"),"Dbl."&AG96&"F",0) -> 
AC97: =IF(AND(AB97=20,$Z$4>=61,$Z$4<=68,ModelNo="9001"),"Dbl."&AB97&"G",0) ->  | AG97: 0 | AH97: =IF(AND(AG97=20,$AE$4>=61,$AE$4<=68,ModelNo="9001"),"Dbl."&AG97&"G",0) -> 
AC98: =IF(AND(AB98=20,$Z$4>=69,$Z$4<=74,ModelNo="9001"),"Dbl."&AB98&"H",0) ->  | AG98: 0 | AH98: =IF(AND(AG98=20,$AE$4>=69,$AE$4<=74,ModelNo="9001"),"Dbl."&AG98&"H",0) -> 
AC99: =IF(AND(AB99=20,$Z$4>=75,$Z$4<=80,ModelNo="9001"),"Dbl."&AB99&"I",0) ->  | AG99: 0 | AH99: =IF(AND(AG99=20,$AE$4>=75,$AE$4<=80,ModelNo="9001"),"Dbl."&AG99&"I",0) -> 
AB100: =IF(AND($AA$4<=22,$AA$4>20),22,0) ->  | AC100: =IF(AND(AB100=22,$Z$4>=5,$Z$4<=10),AB100&"A",0) ->  | AG100: =IF(AND($AF$4<=22,$AF$4>20),22,0) -> 0 | AH100: =IF(AND(AG100=22,$AE$4>=5,$AE$4<=10),AG100&"A",0) -> 
AC101: =IF(AND(AB101=22,$Z$4>=11,$Z$4<=16),AB101&"B",0) ->  | AG101: 0 | AH101: =IF(AND(AG101=22,$AE$4>=11,$AE$4<=16),AG101&"B",0) -> 
AC102: =IF(AND(AB102=22,$Z$4>=17,$Z$4<=21),AB102&"C",0) ->  | AG102: 0 | AH102: =IF(AND(AG102=22,$AE$4>=17,$AE$4<=21),AG102&"C",0) -> 
AC103: =IF(AND(AB103=22,$Z$4>=22,$Z$4<=24),AB103&"D",0) ->  | AG103: 0 | AH103: =IF(AND(AG103=22,$AE$4>=22,$AE$4<=24),AG103&"D",0) -> 
AC104: =IF(AND(AB104=22,$Z$4>=25,$Z$4<=27),AB104&"E",0) ->  | AG104: 0 | AH104: =IF(AND(AG104=22,$AE$4>=25,$AE$4<=27),AG104&"E",0) -> 
AC105: =IF(AND(AB105=22,$Z$4>=28,$Z$4<=30),AB105&"F",0) ->  | AG105: 0 | AH105: =IF(AND(AG105=22,$AE$4>=28,$AE$4<=30),AG105&"F",0) -> 
AC106: =IF(AND(AB106=22,$Z$4>=31,$Z$4<=34),AB106&"G",0) ->  | AG106: 0 | AH106: =IF(AND(AG106=22,$AE$4>=31,$AE$4<=34),AG106&"G",0) -> 
AC107: =IF(AND(AB107=22,$Z$4>=35,$Z$4<=37),AB107&"H",0) ->  | AG107: 0 | AH107: =IF(AND(AG107=22,$AE$4>=35,$AE$4<=37),AG107&"H",0) -> 
AC108: =IF(AND(AB108=22,$Z$4>=38,$Z$4<=40),AB108&"I",0) ->  | AG108: 0 | AH108: =IF(AND(AG108=22,$AE$4>=38,$AE$4<=40),AG108&"I",0) -> 
AC109: =IF(AND(AB109=22,$Z$4>=41,$Z$4<=42,ModelNo="9001"),"Dbl."&AB109&"C",0) ->  | AG109: 0 | AH109: =IF(AND(AG109=22,$AE$4>=41,$AE$4<=42,ModelNo="9001"),"Dbl."&AG109&"C",0) -> 
AC110: =IF(AND(AB110=22,$Z$4>=43,$Z$4<=48,ModelNo="9001"),"Dbl."&AB110&"D",0) ->  | AG110: 0 | AH110: =IF(AND(AG110=22,$AE$4>=43,$AE$4<=48,ModelNo="9001"),"Dbl."&AG110&"D",0) -> 
AC111: =IF(AND(AB111=22,$Z$4>=49,$Z$4<=54,ModelNo="9001"),"Dbl."&AB111&"E",0) ->  | AG111: 0 | AH111: =IF(AND(AG111=22,$AE$4>=49,$AE$4<=54,ModelNo="9001"),"Dbl."&AG111&"E",0) -> 
AC112: =IF(AND(AB112=22,$Z$4>=55,$Z$4<=60,ModelNo="9001"),"Dbl."&AB112&"F",0) ->  | AG112: 0 | AH112: =IF(AND(AG112=22,$AE$4>=55,$AE$4<=60,ModelNo="9001"),"Dbl."&AG112&"F",0) -> 
AC113: =IF(AND(AB113=22,$Z$4>=61,$Z$4<=68,ModelNo="9001"),"Dbl."&AB113&"G",0) ->  | AG113: 0 | AH113: =IF(AND(AG113=22,$AE$4>=61,$AE$4<=68,ModelNo="9001"),"Dbl."&AG113&"G",0) -> 
AC114: =IF(AND(AB114=22,$Z$4>=69,$Z$4<=74,ModelNo="9001"),"Dbl."&AB114&"H",0) ->  | AG114: 0 | AH114: =IF(AND(AG114=22,$AE$4>=69,$AE$4<=74,ModelNo="9001"),"Dbl."&AG114&"H",0) -> 
AC115: =IF(AND(AB115=22,$Z$4>=75,$Z$4<=80,ModelNo="9001"),"Dbl."&AB115&"I",0) ->  | AG115: 0 | AH115: =IF(AND(AG115=22,$AE$4>=75,$AE$4<=80,ModelNo="9001"),"Dbl."&AG115&"I",0) -> 
AB116: =IF(AND($AA$4<=24,$AA$4>22),24,0) ->  | AC116: =IF(AND(AB116=24,$Z$4>=6,$Z$4<=10),AB116&"A",0) ->  | AG116: =IF(AND($AF$4<=24,$AF$4>22),24,0) -> 0 | AH116: =IF(AND(AG116=24,$AE$4>=6,$AE$4<=10),AG116&"A",0) -> 
AC117: =IF(AND(AB117=24,$Z$4>=11,$Z$4<=17),AB117&"B",0) ->  | AG117: 0 | AH117: =IF(AND(AG117=24,$AE$4>=11,$AE$4<=17),AG117&"B",0) -> 
AC118: =IF(AND(AB118=24,$Z$4>=18,$Z$4<=22),AB118&"C",0) ->  | AG118: 0 | AH118: =IF(AND(AG118=24,$AE$4>=18,$AE$4<=22),AG118&"C",0) -> 
AC119: =IF(AND(AB119=24,$Z$4>=23,$Z$4<=25),AB119&"D",0) ->  | AG119: 0 | AH119: =IF(AND(AG119=24,$AE$4>=23,$AE$4<=25),AG119&"D",0) -> 
AC120: =IF(AND(AB120=24,$Z$4>=26,$Z$4<=28),AB120&"E",0) ->  | AG120: 0 | AH120: =IF(AND(AG120=24,$AE$4>=26,$AE$4<=28),AG120&"E",0) -> 
AC121: =IF(AND(AB121=24,$Z$4>=29,$Z$4<=30),AB121&"F",0) ->  | AG121: 0 | AH121: =IF(AND(AG121=24,$AE$4>=29,$AE$4<=30),AG121&"F",0) -> 
AC122: =IF(AND(AB122=24,$Z$4>=31,$Z$4<=34),AB122&"G",0) ->  | AG122: 0 | AH122: =IF(AND(AG122=24,$AE$4>=31,$AE$4<=34),AG122&"G",0) -> 
AC123: =IF(AND(AB123=24,$Z$4>=35,$Z$4<=37),AB123&"H",0) ->  | AG123: 0 | AH123: =IF(AND(AG123=24,$AE$4>=35,$AE$4<=37),AG123&"H",0) -> 
AC124: =IF(AND(AB124=24,$Z$4>=38,$Z$4<=40),AB124&"I",0) ->  | AG124: 0 | AH124: =IF(AND(AG124=24,$AE$4>=38,$AE$4<=40),AG124&"I",0) -> 
AC125: =IF(AND(AB125=24,$Z$4>=41,$Z$4<=44,ModelNo="9001"),"Dbl."&AB125&"C",0) ->  | AG125: 0 | AH125: =IF(AND(AG125=24,$AE$4>=41,$AE$4<=44,ModelNo="9001"),"Dbl."&AG125&"C",0) -> 
AC126: =IF(AND(AB126=24,$Z$4>=45,$Z$4<=50,ModelNo="9001"),"Dbl."&AB126&"D",0) ->  | AG126: 0 | AH126: =IF(AND(AG126=24,$AE$4>=45,$AE$4<=50,ModelNo="9001"),"Dbl."&AG126&"D",0) -> 
AC127: =IF(AND(AB127=24,$Z$4>=51,$Z$4<=56,ModelNo="9001"),"Dbl."&AB127&"E",0) ->  | AG127: 0 | AH127: =IF(AND(AG127=24,$AE$4>=51,$AE$4<=56,ModelNo="9001"),"Dbl."&AG127&"E",0) -> 
AC128: =IF(AND(AB128=24,$Z$4>=57,$Z$4<=60,ModelNo="9001"),"Dbl."&AB128&"F",0) ->  | AG128: 0 | AH128: =IF(AND(AG128=24,$AE$4>=57,$AE$4<=60,ModelNo="9001"),"Dbl."&AG128&"F",0) -> 
AC129: =IF(AND(AB129=24,$Z$4>=61,$Z$4<=68,ModelNo="9001"),"Dbl."&AB129&"G",0) ->  | AG129: 0 | AH129: =IF(AND(AG129=24,$AE$4>=61,$AE$4<=68,ModelNo="9001"),"Dbl."&AG129&"G",0) -> 
AC130: =IF(AND(AB130=24,$Z$4>=69,$Z$4<=74,ModelNo="9001"),"Dbl."&AB130&"H",0) ->  | AG130: 0 | AH130: =IF(AND(AG130=24,$AE$4>=69,$AE$4<=74,ModelNo="9001"),"Dbl."&AG130&"H",0) -> 
AC131: =IF(AND(AB131=24,$Z$4>=75,$Z$4<=80,ModelNo="9001"),"Dbl."&AB131&"I",0) ->  | AG131: 0 | AH131: =IF(AND(AG131=24,$AE$4>=75,$AE$4<=80,ModelNo="9001"),"Dbl."&AG131&"I",0) -> 
AB132: =IF(AND($AA$4<=26,$AA$4>24),26,0) ->  | AC132: =IF(AND(AB132=26,$Z$4>=6,$Z$4<=11),AB132&"A",0) ->  | AG132: =IF(AND($AF$4<=26,$AF$4>24),26,0) -> 0 | AH132: =IF(AND(AG132=26,$AE$4>=6,$AE$4<=11),AG132&"A",0) -> 
AA133: =IF(AND(AB133>0,AC133>0),AB133,0) ->  | AC133: =IF(AND(AB133=26,$Z$4>=12,$Z$4<=17),AB133&"B",0) ->  | AF133: =IF(AND(AG133>0,AH133>0),AG133,0) ->  | AG133: 0 | AH133: =IF(AND(AG133=26,$AE$4>=12,$AE$4<=17),AG133&"B",0) -> 
AC134: =IF(AND(AB134=26,$Z$4>=18,$Z$4<=22),AB134&"C",0) ->  | AG134: 0 | AH134: =IF(AND(AG134=26,$AE$4>=18,$AE$4<=22),AG134&"C",0) -> 
AC135: =IF(AND(AB135=26,$Z$4>=23,$Z$4<=26),AB135&"D",0) ->  | AG135: 0 | AH135: =IF(AND(AG135=26,$AE$4>=23,$AE$4<=26),AG135&"D",0) -> 
AC136: =IF(AND(AB136=26,$Z$4>=27,$Z$4<=30),AB136&"E",0) ->  | AG136: 0 | AH136: =IF(AND(AG136=26,$AE$4>=27,$AE$4<=30),AG136&"E",0) -> 
AC137: =IF(AND(AB137=26,$Z$4>=31,$Z$4<=34),AB137&"F",0) ->  | AG137: 0 | AH137: =IF(AND(AG137=26,$AE$4>=31,$AE$4<=34),AG137&"F",0) -> 
AC138: =IF(AND(AB138=26,$Z$4>=35,$Z$4<=38),AB138&"G",0) ->  | AG138: 0 | AH138: =IF(AND(AG138=26,$AE$4>=35,$AE$4<=38),AG138&"G",0) -> 
AC139: =IF(AND(AB139=26,$Z$4>=39,$Z$4<=42),AB139&"H",0) ->  | AG139: 0 | AH139: =IF(AND(AG139=26,$AE$4>=39,$AE$4<=42),AG139&"H",0) -> 
AC140: =IF(AND(AB140=26,$Z$4>=43,$Z$4<=45),AB140&"I",0) ->  | AG140: 0 | AH140: =IF(AND(AG140=26,$AE$4>=43,$AE$4<=45),AG140&"I",0) -> 
AC141: =IF(AND(AB141=26,$Z$4>=46,$Z$4<=52,ModelNo="9001"),"Dbl."&AB141&"D",0) ->  | AG141: 0 | AH141: =IF(AND(AG141=26,$AE$4>=46,$AE$4<=52,ModelNo="9001"),"Dbl."&AG141&"D",0) -> 
AC142: =IF(AND(AB142=26,$Z$4>=53,$Z$4<=60,ModelNo="9001"),"Dbl."&AB142&"E",0) ->  | AG142: 0 | AH142: =IF(AND(AG142=26,$AE$4>=53,$AE$4<=60,ModelNo="9001"),"Dbl."&AG142&"E",0) -> 
AC143: =IF(AND(AB143=26,$Z$4>=61,$Z$4<=68,ModelNo="9001"),"Dbl."&AB143&"F",0) ->  | AG143: 0 | AH143: =IF(AND(AG143=26,$AE$4>=61,$AE$4<=68,ModelNo="9001"),"Dbl."&AG143&"F",0) -> 
AC144: =IF(AND(AB144=26,$Z$4>=69,$Z$4<=76,ModelNo="9001"),"Dbl."&AB144&"G",0) ->  | AG144: 0 | AH144: =IF(AND(AG144=26,$AE$4>=69,$AE$4<=76,ModelNo="9001"),"Dbl."&AG144&"G",0) -> 
AC145: =IF(AND(AB145=26,$Z$4>=77,$Z$4<=80,ModelNo="9001"),"Dbl."&AB145&"H",0) ->  | AG145: 0 | AH145: =IF(AND(AG145=26,$AE$4>=77,$AE$4<=80,ModelNo="9001"),"Dbl."&AG145&"H",0) -> 
AB146: =IF(AND($AA$4<=28,$AA$4>26),28,0) ->  | AC146: =IF(AND(AB146=28,$Z$4>=7,$Z$4<=12),AB146&"A",0) ->  | AG146: =IF(AND($AF$4<=28,$AF$4>26),28,0) -> 0 | AH146: =IF(AND(AG146=28,$AE$4>=7,$AE$4<=12),AG146&"A",0) -> 
AC147: =IF(AND(AB147=28,$Z$4>=13,$Z$4<=18),AB147&"B",0) ->  | AG147: 0 | AH147: =IF(AND(AG147=28,$AE$4>=13,$AE$4<=18),AG147&"B",0) -> 
AC148: =IF(AND(AB148=28,$Z$4>=19,$Z$4<=23),AB148&"C",0) ->  | AG148: 0 | AH148: =IF(AND(AG148=28,$AE$4>=19,$AE$4<=23),AG148&"C",0) -> 
AC149: =IF(AND(AB149=28,$Z$4>=24,$Z$4<=28),AB149&"D",0) ->  | AG149: 0 | AH149: =IF(AND(AG149=28,$AE$4>=24,$AE$4<=28),AG149&"D",0) -> 
AC150: =IF(AND(AB150=28,$Z$4>=29,$Z$4<=32),AB150&"E",0) ->  | AG150: 0 | AH150: =IF(AND(AG150=28,$AE$4>=29,$AE$4<=32),AG150&"E",0) -> 
AC151: =IF(AND(AB151=28,$Z$4>=33,$Z$4<=36),AB151&"F",0) ->  | AG151: 0 | AH151: =IF(AND(AG151=28,$AE$4>=33,$AE$4<=36),AG151&"F",0) -> 
AC152: =IF(AND(AB152=28,$Z$4>=37,$Z$4<=40),AB152&"G",0) ->  | AG152: 0 | AH152: =IF(AND(AG152=28,$AE$4>=37,$AE$4<=40),AG152&"G",0) -> 
AC153: =IF(AND(AB153=28,$Z$4>=41,$Z$4<=43),AB153&"H",0) ->  | AG153: 0 | AH153: =IF(AND(AG153=28,$AE$4>=41,$AE$4<=43),AG153&"H",0) -> 
AC154: =IF(AND(AB154=28,$Z$4>=44,$Z$4<=45),AB154&"I",0) ->  | AG154: 0 | AH154: =IF(AND(AG154=28,$AE$4>=44,$AE$4<=45),AG154&"I",0) -> 
AC155: =IF(AND(AB155=28,$Z$4=46,ModelNo="9001"),"Dbl."&AB155&"C",0) ->  | AG155: 0 | AH155: =IF(AND(AG155=28,$AE$4=46,ModelNo="9001"),"Dbl."&AG155&"C",0) -> 
AC156: =IF(AND(AB156=28,$Z$4>=47,$Z$4<=56,ModelNo="9001"),"Dbl."&AB156&"D",0) ->  | AG156: 0 | AH156: =IF(AND(AG156=28,$AE$4>=47,$AE$4<=56,ModelNo="9001"),"Dbl."&AG156&"D",0) -> 
AC157: =IF(AND(AB157=28,$Z$4>=57,$Z$4<=64,ModelNo="9001"),"Dbl."&AB157&"E",0) ->  | AG157: 0 | AH157: =IF(AND(AG157=28,$AE$4>=57,$AE$4<=64,ModelNo="9001"),"Dbl."&AG157&"E",0) -> 
AC158: =IF(AND(AB158=28,$Z$4>=65,$Z$4<=72,ModelNo="9001"),"Dbl."&AB158&"F",0) ->  | AG158: 0 | AH158: =IF(AND(AG158=28,$AE$4>=65,$AE$4<=72,ModelNo="9001"),"Dbl."&AG158&"F",0) -> 
AC159: =IF(AND(AB159=28,$Z$4>=73,$Z$4<=80,ModelNo="9001"),"Dbl."&AB159&"G",0) ->  | AG159: 0 | AH159: =IF(AND(AG159=28,$AE$4>=73,$AE$4<=80,ModelNo="9001"),"Dbl."&AG159&"G",0) -> 
AB160: =IF(AND($AA$4<=30,$AA$4>28),30,0) ->  | AC160: =IF(AND(AB160=30,$Z$4>=8,$Z$4<=13),AB160&"A",0) ->  | AG160: =IF(AND($AF$4<=30,$AF$4>28),30,0) -> 0 | AH160: =IF(AND(AG160=30,$AE$4>=8,$AE$4<=13),AG160&"A",0) -> 
AC161: =IF(AND(AB161=30,$Z$4>=14,$Z$4<=19),AB161&"B",0) ->  | AG161: 0 | AH161: =IF(AND(AG161=30,$AE$4>=14,$AE$4<=19),AG161&"B",0) -> 
AC162: =IF(AND(AB162=30,$Z$4>=20,$Z$4<=24),AB162&"C",0) ->  | AG162: 0 | AH162: =IF(AND(AG162=30,$AE$4>=20,$AE$4<=24),AG162&"C",0) -> 
AC163: =IF(AND(AB163=30,$Z$4>=25,$Z$4<=29),AB163&"D",0) ->  | AG163: 0 | AH163: =IF(AND(AG163=30,$AE$4>=25,$AE$4<=29),AG163&"D",0) -> 
AC164: =IF(AND(AB164=30,$Z$4>=30,$Z$4<=33),AB164&"E",0) ->  | AG164: 0 | AH164: =IF(AND(AG164=30,$AE$4>=30,$AE$4<=33),AG164&"E",0) -> 
AC165: =IF(AND(AB165=30,$Z$4>=34,$Z$4<=37),AB165&"F",0) ->  | AG165: 0 | AH165: =IF(AND(AG165=30,$AE$4>=34,$AE$4<=37),AG165&"F",0) -> 
AC166: =IF(AND(AB166=30,$Z$4>=38,$Z$4<=40),AB166&"G",0) ->  | AG166: 0 | AH166: =IF(AND(AG166=30,$AE$4>=38,$AE$4<=40),AG166&"G",0) -> 
AC167: =IF(AND(AB167=30,$Z$4>=41,$Z$4<=43),AB167&"H",0) ->  | AG167: 0 | AH167: =IF(AND(AG167=30,$AE$4>=41,$AE$4<=43),AG167&"H",0) -> 
AC168: =IF(AND(AB168=30,$Z$4>=44,$Z$4<=45),AB168&"I",0) ->  | AG168: 0 | AH168: =IF(AND(AG168=30,$AE$4>=44,$AE$4<=45),AG168&"I",0) -> 
AC169: =IF(AND(AB169=30,$Z$4>=46,$Z$4<=48,ModelNo="9001"),"Dbl."&AB169&"C",0) ->  | AG169: 0 | AH169: =IF(AND(AG169=30,$AE$4>=46,$AE$4<=48,ModelNo="9001"),"Dbl."&AG169&"C",0) -> 
AC170: =IF(AND(AB170=30,$Z$4>=49,$Z$4<=58,ModelNo="9001"),"Dbl."&AB170&"D",0) ->  | AG170: 0 | AH170: =IF(AND(AG170=30,$AE$4>=49,$AE$4<=58,ModelNo="9001"),"Dbl."&AG170&"D",0) -> 
AC171: =IF(AND(AB171=30,$Z$4>=59,$Z$4<=66,ModelNo="9001"),"Dbl."&AB171&"E",0) ->  | AG171: 0 | AH171: =IF(AND(AG171=30,$AE$4>=59,$AE$4<=66,ModelNo="9001"),"Dbl."&AG171&"E",0) -> 
AC172: =IF(AND(AB172=30,$Z$4>=67,$Z$4<=74,ModelNo="9001"),"Dbl."&AB172&"F",0) ->  | AG172: 0 | AH172: =IF(AND(AG172=30,$AE$4>=67,$AE$4<=74,ModelNo="9001"),"Dbl."&AG172&"F",0) -> 
AC173: =IF(AND(AB173=30,$Z$4>=75,$Z$4<=80,ModelNo="9001"),"Dbl."&AB173&"G",0) ->  | AG173: 0 | AH173: =IF(AND(AG173=30,$AE$4>=75,$AE$4<=80,ModelNo="9001"),"Dbl."&AG173&"G",0) -> 
AB174: =IF(AND($AA$4<=32,$AA$4>30),32,0) ->  | AC174: =IF(AND(AB174=32,$Z$4>=8,$Z$4<=14),AB174&"A",0) ->  | AG174: =IF(AND($AF$4<=32,$AF$4>30),32,0) -> 0 | AH174: =IF(AND(AG174=32,$AE$4>=8,$AE$4<=14),AG174&"A",0) -> 
AC175: =IF(AND(AB175=32,$Z$4>=15,$Z$4<=20),AB175&"B",0) ->  | AG175: 0 | AH175: =IF(AND(AG175=32,$AE$4>=15,$AE$4<=20),AG175&"B",0) -> 
AC176: =IF(AND(AB176=32,$Z$4>=21,$Z$4<=25),AB176&"C",0) ->  | AG176: 0 | AH176: =IF(AND(AG176=32,$AE$4>=21,$AE$4<=25),AG176&"C",0) -> 
AC177: =IF(AND(AB177=32,$Z$4>=26,$Z$4<=30),AB177&"D",0) ->  | AG177: 0 | AH177: =IF(AND(AG177=32,$AE$4>=26,$AE$4<=30),AG177&"D",0) -> 
AC178: =IF(AND(AB178=32,$Z$4>=31,$Z$4<=34),AB178&"E",0) ->  | AG178: 0 | AH178: =IF(AND(AG178=32,$AE$4>=31,$AE$4<=34),AG178&"E",0) -> 
AC179: =IF(AND(AB179=32,$Z$4>=35,$Z$4<=37),AB179&"F",0) ->  | AG179: 0 | AH179: =IF(AND(AG179=32,$AE$4>=35,$AE$4<=37),AG179&"F",0) -> 
AC180: =IF(AND(AB180=32,$Z$4>=38,$Z$4<=40),AB180&"G",0) ->  | AG180: 0 | AH180: =IF(AND(AG180=32,$AE$4>=38,$AE$4<=40),AG180&"G",0) -> 
AC181: =IF(AND(AB181=32,$Z$4>=41,$Z$4<=43),AB181&"H",0) ->  | AG181: 0 | AH181: =IF(AND(AG181=32,$AE$4>=41,$AE$4<=43),AG181&"H",0) -> 
AC182: =IF(AND(AB182=32,$Z$4>=44,$Z$4<=45),AB182&"I",0) ->  | AG182: 0 | AH182: =IF(AND(AG182=32,$AE$4>=44,$AE$4<=45),AG182&"I",0) -> 
AC183: =IF(AND(AB183=32,$Z$4>=46,$Z$4<=50,ModelNo="9001"),"Dbl."&AB183&"C",0) ->  | AG183: 0 | AH183: =IF(AND(AG183=32,$AE$4>=46,$AE$4<=50,ModelNo="9001"),"Dbl."&AG183&"C",0) -> 
AC184: =IF(AND(AB184=32,$Z$4>=51,$Z$4<=60,ModelNo="9001"),"Dbl."&AB184&"D",0) ->  | AG184: 0 | AH184: =IF(AND(AG184=32,$AE$4>=51,$AE$4<=60,ModelNo="9001"),"Dbl."&AG184&"D",0) -> 
AC185: =IF(AND(AB185=32,$Z$4>=61,$Z$4<=68,ModelNo="9001"),"Dbl."&AB185&"E",0) ->  | AG185: 0 | AH185: =IF(AND(AG185=32,$AE$4>=61,$AE$4<=68,ModelNo="9001"),"Dbl."&AG185&"E",0) -> 
AC186: =IF(AND(AB186=32,$Z$4>=69,$Z$4<=74,ModelNo="9001"),"Dbl."&AB186&"F",0) ->  | AG186: 0 | AH186: =IF(AND(AG186=32,$AE$4>=69,$AE$4<=74,ModelNo="9001"),"Dbl."&AG186&"F",0) -> 
AC187: =IF(AND(AB187=32,$Z$4>=75,$Z$4<=80,ModelNo="9001"),"Dbl."&AB187&"G",0) ->  | AG187: 0 | AH187: =IF(AND(AG187=32,$AE$4>=75,$AE$4<=80,ModelNo="9001"),"Dbl."&AG187&"G",0) -> 
AB188: =IF(AND($AA$4<=34,$AA$4>32),34,0) ->  | AC188: =IF(AND(AB188=34,$Z$4>=11,$Z$4<=16),AB188&"A",0) ->  | AG188: =IF(AND($AF$4<=34,$AF$4>32),34,0) -> 0 | AH188: =IF(AND(AG188=34,$AE$4>=11,$AE$4<=16),AG188&"A",0) -> 
AC189: =IF(AND(AB189=34,$Z$4>=17,$Z$4<=22),AB189&"B",0) ->  | AG189: 0 | AH189: =IF(AND(AG189=34,$AE$4>=17,$AE$4<=22),AG189&"B",0) -> 
AC190: =IF(AND(AB190=34,$Z$4>=23,$Z$4<=27),AB190&"C",0) ->  | AG190: 0 | AH190: =IF(AND(AG190=34,$AE$4>=23,$AE$4<=27),AG190&"C",0) -> 
AC191: =IF(AND(AB191=34,$Z$4>=28,$Z$4<=32),AB191&"D",0) ->  | AG191: 0 | AH191: =IF(AND(AG191=34,$AE$4>=28,$AE$4<=32),AG191&"D",0) -> 
AC192: =IF(AND(AB192=34,$Z$4>=33,$Z$4<=34),AB192&"E",0) ->  | AG192: 0 | AH192: =IF(AND(AG192=34,$AE$4>=33,$AE$4<=34),AG192&"E",0) -> 
AC193: =IF(AND(AB193=34,$Z$4>=35,$Z$4<=37),AB193&"F",0) ->  | AG193: 0 | AH193: =IF(AND(AG193=34,$AE$4>=35,$AE$4<=37),AG193&"F",0) -> 
AC194: =IF(AND(AB194=34,$Z$4>=38,$Z$4<=40),AB194&"G",0) ->  | AG194: 0 | AH194: =IF(AND(AG194=34,$AE$4>=38,$AE$4<=40),AG194&"G",0) -> 
AC195: =IF(AND(AB195=34,$Z$4>=41,$Z$4<=43),AB195&"H",0) ->  | AG195: 0 | AH195: =IF(AND(AG195=34,$AE$4>=41,$AE$4<=43),AG195&"H",0) -> 
AC196: =IF(AND(AB196=34,$Z$4>=44,$Z$4<=45),AB196&"I",0) ->  | AG196: 0 | AH196: =IF(AND(AG196=34,$AE$4>=44,$AE$4<=45),AG196&"I",0) -> 
AA197: =IF(AND(AB197>0,AC197>0),AB197,0) ->  | AC197: =IF(AND(AB197=34,$Z$4>=46,$Z$4<=54,ModelNo="9001"),"Dbl."&AB197&"C",0) ->  | AF197: =IF(AND(AG197>0,AH197>0),AG197,0) ->  | AG197: 0 | AH197: =IF(AND(AG197=34,$AE$4>=46,$AE$4<=54,ModelNo="9001"),"Dbl."&AG197&"C",0) -> 
AC198: =IF(AND(AB198=34,$Z$4>=55,$Z$4<=64,ModelNo="9001"),"Dbl."&AB198&"D",0) ->  | AG198: 0 | AH198: =IF(AND(AG198=34,$AE$4>=55,$AE$4<=64,ModelNo="9001"),"Dbl."&AG198&"D",0) -> 
AC199: =IF(AND(AB199=34,$Z$4>=65,$Z$4<=68,ModelNo="9001"),"Dbl."&AB199&"E",0) ->  | AG199: 0 | AH199: =IF(AND(AG199=34,$AE$4>=65,$AE$4<=68,ModelNo="9001"),"Dbl."&AG199&"E",0) -> 
AC200: =IF(AND(AB200=34,$Z$4>=69,$Z$4<=74,ModelNo="9001"),"Dbl."&AB200&"F",0) ->  | AG200: 0 | AH200: =IF(AND(AG200=34,$AE$4>=69,$AE$4<=74,ModelNo="9001"),"Dbl."&AG200&"F",0) -> 
... 71 more rows

Sheet Data (hidden)
B1: Model | C1: Description | D1: Value
A2: =IF(ModelNo=B2,1,"") ->  | B2: 9051 | C2: Sash Width | D2: =Frame_Width-1.625 -> -1.625 | F2: =G62 -> Select a Model | G2: Models | H2: Description | I2: W cut-back | J2: H-cut-back | K2: Width | L2: Height | M2: Min W | N2: Min H | O2: Max W | P2: Max H | Q2: Max UI | R2: Type1 | S2: Type2 | T2: Type3 | U2: Type4 | V2: Screen1 | W2: Screen2 | X2: Screen3 | Y2: Glass Thickness | Z2: Glass | AA2: Opening | AM2: Triple IG calculation
A3: =IF(ModelNo=B3,2,"") ->  | B3: 9051 | C3: Sash Height | D3: =Frame_Height-1.625 -> -1.625 | F3: 1 | G3: Select a Model
A4: =IF(ModelNo=B4,3,"") ->  | B4: 9051 | C4: Sash Glass Width | D4: =Frame_Width-4.625 -> -4.625 | F4: 2 | G4: 3001 | H4: Reserve Double Hung | I4: 0 | J4: 0 | M4: 12 | N4: 20 | O4: =IF(REINFSELECT=2,48,IF(REINFSELECT=3,52,"")) ->  | P4: =IF(REINFSELECT=2,84,IF(REINFSELECT=3,96,"")) ->  | Q4: =IF(REINFSELECT=2,126,IF(REINFSELECT=3,148,"")) ->  | R4: Standard | S4: Oriel (2/3 - 1/3) | T4: Cottage (1/3 - 2/3) | U4: Custom | V4: Half | W4: Full | X4: Locking | Y4: 5 | AA4: =IF(RO=2,"<< Exact Size Only","") ->  | AM4: SS (2.2) | AN4: DS (3.2) | AO4: 4 mm | AP4: TS (5.0)
A5: =IF(ModelNo=B5,4,"") ->  | B5: 9051 | C5: Sash Glass Height | D5: =Frame_Height-4.625 -> -4.625 | F5: 3 | G5: 3002 | H5: Reserve Two Lite Slider | I5: 0 | J5: 0 | M5: 18.5 | N5: 11.25 | O5: =IF(REINFSELECT=2,72,IF(REINFSELECT=3,84,"")) ->  | P5: =IF(REINFSELECT=2,56,IF(REINFSELECT=3,72,"")) ->  | Q5: =IF(REINFSELECT=2,128,IF(REINFSELECT=3,156,"")) ->  | R5: Standard | V5: Half | W5: Full | Y5: 5 | AA5: =IF(RO=2,"<< Exact Size Only","") ->  | AF5: 1 | AG5: Single Strength (2.5 mm) | AL5: Max. Short | AM5: =IF(TG2W>41,0,41) -> 0 | AN5: =IF(TG2W>56,0,56) -> 0 | AO5: =IF(TG2W>67,0,67) -> 0 | AP5: =IF(TG2W>70,0,70) -> 0 | AQ5: Annealed
A6: =IF(ModelNo=B6,5,"") ->  | B6: 9051 | C6: Glass Area (sq.ft.) | D6: =(D4*D5)/144 -> 0.1485460069 | F6: 4 | G6: 3003 | H6: Reserve Three Lite Slider (1/4-1/2-1/4) | I6: 0 | J6: 0 | M6: 47.5 | N6: 11.25 | O6: =IF(REINFSELECT=2,108,IF(REINFSELECT=3,120,"")) ->  | P6: =IF(REINFSELECT=2,56,IF(REINFSELECT=3,72,"")) ->  | Q6: =IF(REINFSELECT=2,164,IF(REINFSELECT=3,192,"")) ->  | R6: Standard (1/4-1/2-1/4) | V6: Half | W6: Full | Y6: 5 | AA6: =IF(RO=2,"<< Exact Size Only","") ->  | AF6: 2 | AG6: Double Strength (3 mm) | AL6: Max. Long | AM6: =IF(TG2H>62,0,62) -> 0 | AN6: =IF(TG2H>76,0,76) -> 0 | AO6: =IF(TG2H>90,0,90) -> 0 | AP6: =IF(TG2H>102,0,102) -> 0 | AQ6: Annealed
A7: =IF(ModelNo=B7,6,"") ->  | B7: 9051 | C7: Screen Width | D7: =Frame_Width-4 -> -4 | F7: 5 | G7: 3004 | H7: Reserve Picture Window | I7: 0 | J7: 0 | M7: 9.5 | N7: 9.5 | O7: 112 | P7: 96 | Q7: 154 | R7: Standard | Y7: 5 | AA7: =IF(RO=2,"<< Exact Size Only","") ->  | AF7: 3 | AG7: Triple Strength (5 mm) | AL7: Max Sq.Ft. | AM7: =IF(TG2A>12,0,12) -> 0 | AN7: =IF(TG2A>22,0,22) -> 0 | AO7: =IF(TG2A>32,0,32) -> 0 | AP7: =IF(TG2A>35,0,35) -> 0 | AQ7: Annealed
A8: =IF(ModelNo=B8,7,"") ->  | B8: 9051 | C8: Screen Height | D8: =Frame_Height-4 -> -4 | F8: 6 | G8: 3009 | H8: Reserve Three Lite Slider Equal Lite | I8: 0 | J8: 0 | M8: 37.25 | N8: 11.25 | O8: =IF(REINFSELECT=2,108,IF(REINFSELECT=3,120,"")) ->  | P8: =IF(REINFSELECT=2,56,IF(REINFSELECT=3,72,"")) ->  | Q8: =IF(REINFSELECT=2,164,IF(REINFSELECT=3,192,"")) ->  | R8: Standard (1/3-1/3-1/3) | V8: Half | W8: Full | Y8: 5 | AA8: =IF(RO=2,"<< Exact Size Only","") ->  | AF8: 4 | AG8: Laminated | AL8: Max. Short | AM8: 0 | AN8: =IF(TG2W>42,0,42) -> 0 | AO8: =IF(TG2W>70,0,70) -> 0 | AP8: =IF(TG2W>70,0,70) -> 0 | AQ8: Tempered
A9: =IF(ModelNo=B9,8,"") ->  | B9: 9051 | C9: Awning Does not Meet Egress | F9: 7 | G9: 9001 | H9: Preservation Double Hung | I9: 0 | J9: 0 | M9: 16 | N9: 26 | O9: 52 | P9: 84 | Q9: 136 | R9: Standard | S9: Oriel (2/3 - 1/3) | T9: Cottage (1/3 - 2/3) | U9: Custom | V9: Half | W9: Full | X9: Locking | Y9: 5 | AA9: =IF(RO=2,"<< Exact Size Only","") ->  | AF9: 5 | AG9: Triple IG Single Strength | AL9: Max. Long | AM9: 0 | AN9: =IF(TG2H>84,0,84) -> 0 | AO9: =IF(TG2H>129,0,129) -> 0 | AP9: =IF(TG2H>129,0,129) -> 0 | AQ9: Tempered
A10: =IF(ModelNo=B10,1,"") ->  | B10: 9052 | C10: Operating Sash Width | D10: =Frame_Width-1.625 -> -1.625 | F10: 8 | G10: 9002 | H10: Preservation Two Lite Slider | I10: 0 | J10: 0 | M10: 25.25 | N10: 16.625 | O10: 84 | P10: 68 | Q10: 148 | R10: Standard | V10: Half | W10: Full | Y10: 5 | AF10: 6 | AG10: Triple IG Double Strength | AL10: Max Sq.Ft. | AM10: 0 | AN10: =IF(TG2A>24.5,0,24.5) -> 0 | AO10: =IF(TG2A>42,0,42) -> 0 | AP10: =IF(TG2A>42,0,42) -> 0 | AQ10: Tempered
A11: =IF(ModelNo=B11,2,"") ->  | B11: 9052 | C11: Operating Sash Height | D11: =(Frame_Height/2)-1.375 -> -1.375 | F11: 9 | G11: 9003 | H11: Preservation Three Lite Slider (1/4-1/2-1/4) | I11: 0 | J11: 0 | M11: 44.5 | N11: 16.625 | O11: 120 | P11: 68 | Q11: 184 | R11: Standard (1/4-1/2-1/4) | V11: Half | W11: Full | Y11: 5 | AM11: =IF(AND(AM5>0,AM6>0,AM7>0),1,0) -> 0 | AN11: =IF(AND(AN5>0,AN6>0,AN7>0),1,0) -> 0 | AO11: =IF(AND(AO5>0,AO6>0,AO7>0),1,0) -> 0 | AP11: =IF(AND(AP5>0,AP6>0,AP7>0),1,0) -> 0 | AQ11: =IF(AM11>0,"≥SS Annealed",IF(AN11>0,"≥DS Annealed",IF(AP11>0,"TS Annealed",""))) -> 
A12: =IF(ModelNo=B12,3,"") ->  | B12: 9052 | C12: Fixed Sash Width | D12: =Frame_Width-1.625 -> -1.625 | F12: 10 | G12: 9009 | H12: Preservation Three Lite Slider Equal Lite | I12: 0 | J12: 0 | M12: 35.5 | N12: 16.625 | O12: 120 | P12: 68 | Q12: 184 | R12: Standard (1/3-1/3-1/3) | V12: Half | W12: Full | Y12: 5 | AN12: =IF(AND(AN8>0,AN9>0,AN10>0),1,0) -> 0 | AO12: =IF(AND(AO8>0,AO9>0,AO10>0),1,0) -> 0 | AP12: =IF(AND(AP8>0,AP9>0,AP10>0),1,0) -> 0 | AQ12: =IF(AN12>0,"≥DS Tempered",IF(AP12>0,"TS Tempered","")) -> 
A13: =IF(ModelNo=B13,4,"") ->  | B13: 9052 | C13: Fixed Sash Height | D13: =(Frame_Height/2)-1.375 -> -1.375 | F13: 11 | G13: 9014 | H13: Preservation Picture Window | I13: 0 | J13: 0 | M13: 13 | N13: 13 | O13: 96 | P13: 84 | Q13: 154 | R13: Standard | Y13: 5 | AM13: 2.5 mm | AN13: 3.2 mm | AO13: 4 mm | AP13: 5 mm
A14: =IF(ModelNo=B14,5,"") ->  | B14: 9052 | C14: Operating Sash Glass Width | D14: =Frame_Width-4.625 -> -4.625 | F14: 12 | G14: 9022 | H14: Preservation Two Lite Swign & Clean | I14: 0 | J14: 0 | M14: 30 | N14: 20 | O14: 72 | P14: 60 | Q14: 120 | R14: Standard | V14: Half | W14: Full | Y14: 5 | AL14: Max. Short | AM14: =IF(TG2H>41,0,41) -> 0 | AN14: =IF(TG2H>56,0,56) -> 0 | AO14: =IF(TG2H>67,0,67) -> 0 | AP14: =IF(TG2H>70,0,70) -> 0 | AQ14: Annealed
A15: =IF(ModelNo=B15,6,"") ->  | B15: 9052 | C15: Operating Sash Glass Height | D15: =Frame_Height/2-4.375 -> -4.375 | F15: 13 | G15: 9023 | H15: Preservation Three Lite Swign & Clean (1/4-1/2-1/4) | I15: 0 | J15: 0 | M15: 48 | N15: 20 | O15: 84 | P15: 60 | Q15: 144 | R15: Standard (1/4-1/2-1/4) | V15: Half | W15: Full | Y15: 5 | AL15: Max. Long | AM15: =IF(TG2W>62,0,62) -> 0 | AN15: =IF(TG2W>76,0,76) -> 0 | AO15: =IF(TG2W>90,0,90) -> 0 | AP15: =IF(TG2W>102,0,102) -> 0 | AQ15: Annealed
A16: =IF(ModelNo=B16,7,"") ->  | B16: 9052 | C16: Fixed Sash Glass Width | D16: =Frame_Width-4.625 -> -4.625 | F16: 14 | G16: 9029 | H16: Preservation Three Lite Swign & Clean Equal Lite | I16: 0 | J16: 0 | M16: 48 | N16: 20 | O16: 96 | P16: 60 | Q16: 144 | R16: Standard (1/3-1/3-1/3) | V16: Half | W16: Full | Y16: 5 | AL16: Max Sq.Ft. | AM16: =IF(TG2A>12,0,12) -> 0 | AN16: =IF(TG2A>22,0,22) -> 0 | AO16: =IF(TG2A>32,0,32) -> 0 | AP16: =IF(TG2A>35,0,35) -> 0 | AQ16: Annealed
A17: =IF(ModelNo=B17,8,"") ->  | B17: 9052 | C17: Fixed Sash Glass Height | D17: =Frame_Height/2-4.375 -> -4.375 | F17: 15 | G17: 9051 | H17: Preservation Single Vent Awning | I17: 0 | J17: 0 | M17: 19 | N17: 16 | O17: 48 | P17: 48 | Q17: 96 | R17: Standard | W17: Full | Y17: 5 | AL17: Max. Short | AM17: 0 | AN17: =IF(TG2H>42,0,42) -> 0 | AO17: =IF(TG2H>70,0,70) -> 0 | AP17: =IF(TG2H>70,0,70) -> 0 | AQ17: Tempered
A18: =IF(ModelNo=B18,9,"") ->  | B18: 9052 | C18: Screen Width | D18: =Frame_Width-4 -> -4 | F18: 16 | G18: 9052 | H18: Preservation Awning W/ Transom Equal Lite | I18: 0 | J18: 0 | M18: 19 | N18: 32 | O18: 48 | P18: 96 | Q18: 144 | R18: Standard | V18: Half | Y18: 5 | AL18: Max. Long | AM18: 0 | AN18: =IF(TG2W>84,0,84) -> 0 | AO18: =IF(TG2W>129,0,129) -> 0 | AP18: =IF(TG2W>129,0,129) -> 0 | AQ18: Tempered
A19: =IF(ModelNo=B19,10,"") ->  | B19: 9052 | C19: Screen Height | D19: =(Frame_Height/2)-3.6875 -> -3.6875 | F19: 17 | G19: 9053 | H19: Preservation Awning W/ Transom (1/3-2/3) | I19: 0 | J19: 0 | M19: 19 | N19: 48 | O19: 48 | P19: 96 | Q19: 144 | R19: Standard | V19: Half | Y19: 5 | AL19: Max Sq.Ft. | AM19: 0 | AN19: =IF(TG2A>24.5,0,24.5) -> 0 | AO19: =IF(TG2A>42,0,42) -> 0 | AP19: =IF(TG2A>42,0,42) -> 0 | AQ19: Tempered
A20: =IF(ModelNo=B20,11,"") ->  | B20: 9052 | C20: Awning Does not Meet Egress | F20: 18 | G20: 9054 | H20: Preservation Single Vent Awning W/ Bottom Transom | I20: 0 | J20: 0 | M20: 19 | N20: 32 | O20: 48 | P20: 96 | Q20: 144 | R20: Standard | V20: Half | Y20: 5 | AM20: =IF(AND(AM14>0,AM15>0,AM16>0),1,0) -> 0 | AN20: =IF(AND(AN14>0,AN15>0,AN16>0),1,0) -> 0 | AO20: =IF(AND(AO14>0,AO15>0,AO16>0),1,0) -> 0 | AP20: =IF(AND(AP14>0,AP15>0,AP16>0),1,0) -> 0 | AQ20: =IF(AM20>0,"≥SS Annealed",IF(AN20>0,"≥DS Annealed",IF(AP20>0,"TS Annealed",""))) -> 
A21: =IF(ModelNo=B21,1,"") ->  | B21: 9053 | C21: Operating Sash Width | D21: =Frame_Width-1.625 -> -1.625 | F21: 19 | G21: 9055 | H21: Preservation Dual Vent Awning Equal Lite | I21: 0 | J21: 0 | M21: 19 | N21: 32 | O21: 48 | P21: 96 | Q21: 144 | R21: Standard | V21: Half | Y21: 5 | AN21: =IF(AND(AN17>0,AN18>0,AN19>0),1,0) -> 0 | AO21: =IF(AND(AO17>0,AO18>0,AO19>0),1,0) -> 0 | AP21: =IF(AND(AP17>0,AP18>0,AP19>0),1,0) -> 0 | AQ21: =IF(AN21>0,"≥DS Tempered",IF(AP21>0,"TS Tempered","")) -> 
A22: =IF(ModelNo=B22,2,"") ->  | B22: 9053 | C22: Operating Sash Height | D22: =(Frame_Height/3)-1.375 -> -1.375 | F22: 20 | G22: 9070 | H22: Preservation Picture Window | I22: 0 | J22: 0 | M22: 13 | N22: 13 | O22: 96 | P22: 84 | Q22: 154 | R22: Standard | Y22: 5 | AL22: =IF(AND(OR(AQ11="≥SS Annealed",AQ11="≥DS Annealed",AQ12="≥DS Tempered",AQ20="≥SS Annealed",AQ20="≥DS Annealed",AQ21="≥DS Tempered")),"TIG","") ->  | AM22: =IF(AND(ANNEALED1=0,ANNEALED2=0,OR(TEMPERED1>0,TEMPERED2>0)),"Tempered is Required for TIG","") -> 
A23: =IF(ModelNo=B23,3,"") ->  | B23: 9053 | C23: Fixed Sash Width | D23: =Frame_Width-1.625 -> -1.625 | F23: 21 | G23: 9071 | H23: Preservation Single Vent Casement | I23: 0 | J23: 0 | M23: 16 | N23: 19 | O23: 36 | P23: 78 | Q23: 114 | R23: Standard | W23: Full | Y23: 5 | AL23: Model | AM23: Width | AN23: Height | AO23: Area | AP23: Balance
A24: =IF(ModelNo=B24,4,"") ->  | B24: 9053 | C24: Fixed Sash Height | D24: =(2*(Frame_Height/3)-1.375) -> -1.375 | F24: 22 | G24: 9072 | H24: Preservation Dual Vent Casement | I24: 0 | J24: 0 | M24: 32 | N24: 19 | O24: 72 | P24: 78 | Q24: 150 | R24: Standard | V24: Half | Y24: 5 | AK24: =IF(ModelNo=AL24,ModelNo,0) -> 0 | AL24: 3001 | AM24: =MAX($D$352,$D$354) -> -4.75 | AN24: =MAX($D$353,$D$355) -> -2.21875 | AO24: =(AM24*AN24)/144 -> 0.07318793403 | AP24: =IF(AND(OR(Glass=5,Glass=6),OR(TOP_TUBE=0,BTM_TUBE=0)),1,IF(AND(Glass=3,Single_ST=0),1,0)) -> 
A25: =IF(ModelNo=B25,5,"") ->  | B25: 9053 | C25: Operating Sash Glass Width | D25: =Frame_Width-4.625 -> -4.625 | F25: 23 | G25: 9073 | H25: Preservation Dual Vent Three Lite Casement (1/4-1/2-1/4) | I25: 0 | J25: 0 | M25: 64 | N25: 19 | O25: 120 | P25: 78 | Q25: 198 | R25: Standard (1/4-1/2-1/4) | V25: Half | Y25: 5 | AK25: =IF(ModelNo=AL26,ModelNo,0) -> 0 | AL25: 9001 | AM25: =MAX($D$145,$D$147) -> -6.71875 | AN25: =MAX($D$146,$D$148) -> -3.96875 | AO25: =(AM25*AN25)/144 -> 0.1851738824 | AP25: =IF(ISERROR(OR($D$152,$D$154)),0,IF(AND(OR(Glass=5,Glass=6),OR($D$152=0,$D$154=0)),1,0)) -> 0
A26: =IF(ModelNo=B26,6,"") ->  | B26: 9053 | C26: Operating Sash Glass Height | D26: =Frame_Height/3-4.375 -> -4.375 | F26: 24 | G26: 9074 | H26: Preservation Four Lite Casement | I26: 0 | J26: 0 | M26: 64 | N26: 19 | O26: 120 | P26: 78 | Q26: 198 | R26: Standard | V26: Half | Y26: 5 | AK26: 0 | AL26: 9002 | AM26: =$D$161 -> -3.75 | AN26: =$D$162 -> -7.4375 | AO26: =(AM26*AN26)/144 -> 0.1936848958
A27: =IF(ModelNo=B27,7,"") ->  | B27: 9053 | C27: Fixed Sash Glass Width | D27: =Frame_Width-4.625 -> -4.625 | F27: 25 | G27: 9075 | H27: Preservation Five Lite Casement | I27: 0 | J27: 0 | M27: 80 | N27: 19 | O27: 120 | P27: 78 | Q27: 198 | R27: Standard | V27: Half | Y27: 5 | AK27: 0 | AL27: 9003 | AM27: =MAX($D$173,$D$175) -> -2.25 | AN27: =MAX($D$174,$D$176) -> -7.4375 | AO27: =(AM27*AN27)/144 -> 0.1162109375
A28: =IF(ModelNo=B28,8,"") ->  | B28: 9053 | C28: Fixed Sash Glass Height | D28: =2*(Frame_Height/3)-4.375 -> -4.375 | F28: 26 | G28: 9079 | H28: Preservation Dual Vent Three Lite Casement (Equal Lite) | I28: 0 | J28: 0 | M28: 48 | N28: 19 | O28: 108 | P28: 78 | Q28: 186 | R28: Standard (1/3-1/3-1/3) | V28: Half | Y28: 5 | AK28: 0 | AL28: 9009 | AM28: =MAX($D$187,$D$189) -> -2.9375 | AN28: =MAX($D$188,$D$190) -> -7.4375 | AO28: 0.1517198351
A29: =IF(ModelNo=B29,9,"") ->  | B29: 9053 | C29: Screen Width | D29: =Frame_Width-4 -> -4 | F29: 27 | G29: 9102 | H29: 9100 Custom Two Lite Patio Door | I29: 0 | J29: 0 | M29: 48 | N29: 72 | O29: 96 | P29: 96 | Q29: 180 | V29: Half | Y29: 5 | AK29: 0 | AL29: 9014 | AM29: =$D$50 -> -4.625 | AN29: =$D$51 -> -4.625 | AO29: 0.1485460069
A30: =IF(ModelNo=B30,10,"") ->  | B30: 9053 | C30: Screen Height | D30: =(Frame_Height/3)-3.6875 -> -3.6875 | F30: 28 | G30: 9103 | H30: 9100 Custom Three Lite Patio Door | I30: 0 | J30: 0 | M30: 84 | N30: 72 | O30: 144 | P30: 96 | Q30: 228 | V30: Half | Y30: 5 | AK30: 0 | AL30: 9022 | AM30: =MAX($D$200,$D$202) -> -4.125 | AN30: =MAX($D$201,$D$203) -> -6.71875 | AO30: 0.1924641927
A31: =IF(ModelNo=B31,11,"") ->  | B31: 9053 | C31: Awning Does not Meet Egress | F31: 29 | G31: 9104 | H31: 9100 Custom Four Lite Patio Door | I31: 0 | J31: 0 | M31: 96 | N31: 72 | O31: 144 | P31: 96 | Q31: 240 | V31: Half | Y31: 5 | AK31: 0 | AL31: 9023 | AM31: =MAX($D$213,$D$215) -> -2.4375 | AN31: =MAX($D$214,$D$216) -> -6.71875 | AO31: 0.1137288411
A32: =IF(ModelNo=B32,1,"") ->  | B32: 9054 | C32: Operating Sash Width | D32: =Frame_Width-1.625 -> -1.625 | F32: 30 | G32: 9105 | H32: 9100 Five Foot Two Lite Patio Door | I32: 1.375 | J32: 0.5 | K32: 60 | L32: 80 | M32: 58.625 | N32: 79.5 | O32: 58.625 | P32: 79.5 | Q32: 139 | R32: Standard | V32: Half | Y32: 5 | AA32: =IF(RO=1,"<< Rough Opening Only","") -> << Rough Opening Only | AK32: 0 | AL32: 9029 | AM32: =MAX($D$226,$D$228) -> -3.21875 | AN32: =MAX($D$227,$D$229) -> -6.71875 | AO32: 0.1501803928
A33: =IF(ModelNo=B33,2,"") ->  | B33: 9054 | C33: Operating Sash Height | D33: =(Frame_Height/2)-1.375 -> -1.375 | F33: 31 | G33: 9106 | H33: 9100 Six Foot Two Lite Patio Door | I33: 1.375 | J33: 0.5 | K33: 72 | L33: 80 | M33: 70.625 | N33: 79.5 | O33: 70.625 | P33: 79.5 | Q33: 151 | R33: Standard | V33: Half | Y33: 5 | AA33: << Rough Opening Only | AK33: 0 | AL33: 9051 | AM33: =$D$4 -> -4.625 | AN33: =$D$5 -> -4.625 | AO33: 0.1485460069
A34: =IF(ModelNo=B34,3,"") ->  | B34: 9054 | C34: Fixed Sash Width | D34: =Frame_Width-1.625 -> -1.625 | F34: 32 | G34: 9108 | H34: 9100 Eight Foot Two Lite Patio Door | I34: 1.75 | J34: 0.5 | K34: 96 | L34: 80 | M34: 94.25 | N34: 79.5 | O34: 94.25 | P34: 79.5 | Q34: 175 | R34: Standard | V34: Half | Y34: 5 | AA34: << Rough Opening Only | AK34: 0 | AL34: 9052 | AM34: =MAX($D$14,$D$16) -> -4.625 | AN34: =MAX($D$15,$D$17) -> -4.375 | AO34: 0.1405164931
A35: =IF(ModelNo=B35,4,"") ->  | B35: 9054 | C35: Fixed Sash Height | D35: =(Frame_Height/2)-1.375 -> -1.375 | F35: 33 | G35: 9109 | H35: 9100 Nine Foot Three Lite Patio Door | I35: 2.5 | J35: 0.5 | K35: 108 | L35: 80 | M35: 105.5 | N35: 79.5 | O35: 105.5 | P35: 79.5 | Q35: 186 | R35: Standard | V35: Half | Y35: 5 | AA35: << Rough Opening Only | AK35: 0 | AL35: 9053 | AM35: =MAX($D$25,$D$27) -> -4.625 | AN35: =MAX($D$26,$D$28) -> -4.375 | AO35: 0.1405164931
A36: =IF(ModelNo=B36,5,"") ->  | B36: 9054 | C36: Operating Sash Glass Width | D36: =Frame_Width-4.625 -> -4.625 | F36: 34 | G36: 9112 | H36: 9100 Twelve Foot Four Lite Patio Door | I36: 4.5 | J36: 0.5 | K36: 144 | L36: 80 | M36: 139.5 | N36: 79.5 | O36: 139.5 | P36: 79.5 | Q36: 220 | R36: Standard | V36: Half | Y36: 5 | AA36: << Rough Opening Only | AK36: 0 | AL36: 9054 | AM36: =MAX($D$36,$D$38) -> -4.625 | AN36: =MAX($D$37,$D$39) -> -4.375 | AO36: 0.1405164931
A37: =IF(ModelNo=B37,6,"") ->  | B37: 9054 | C37: Operating Sash Glass Height | D37: =(Frame_Height/2)-4.375 -> -4.375 | F37: 35 | G37: 9122 | H37: 9100 Twelve Foot Three Lite Patio Door | I37: 3.125 | J37: 0.5 | K37: 144 | L37: 80 | M37: 140.875 | N37: 79.5 | O37: 140.875 | P37: 79.5 | Q37: 221 | R37: Standard | V37: Half | Y37: 5 | AA37: << Rough Opening Only | AK37: 0 | AL37: 9055 | AM37: =$D$45 -> -4.625 | AN37: =$D$46 -> -4.375 | AO37: 0.1405164931
A38: =IF(ModelNo=B38,7,"") ->  | B38: 9054 | C38: Fixed Sash Glass Width | D38: =Frame_Width-4.625 -> -4.625 | F38: 36 | G38: 9175 | H38: 9100 Wisconsin Two Lite Patio Door | I38: 0.5 | J38: 0.5 | K38: 75 | L38: 80 | M38: 74.5 | N38: 79.5 | O38: 74.5 | P38: 79.5 | Q38: 154 | R38: Standard | V38: Half | Y38: 5 | AA38: << Rough Opening Only | AK38: 0 | AL38: 9070 | AM38: =$D$50 -> -4.625 | AN38: =$D$51 -> -4.625 | AO38: 0.1485460069
A39: =IF(ModelNo=B39,8,"") ->  | B39: 9054 | C39: Fixed Sash Glass Height | D39: =(Frame_Height/2)-4.375 -> -4.375 | F39: 37 | G39: 9202 | H39: 9200 Custom Two Lite Patio Door | I39: 0 | J39: 0 | M39: 48 | N39: 72 | O39: 96 | P39: 96 | Q39: 192 | V39: Half | Y39: 5 | AA39: =IF(RO=2,"<< Exact Size Only","") ->  | AK39: 0 | AL39: 9071 | AM39: =$D$55 -> -4.625 | AN39: =$D$56 -> -4.625 | AO39: 0.1485460069
A40: =IF(ModelNo=B40,9,"") ->  | B40: 9054 | C40: Screen Width | D40: =Frame_Width-4 -> -4 | F40: 38 | G40: 9203 | H40: 9200 Custom Three Lite Patio Door | I40: 0 | J40: 0 | M40: 84 | N40: 72 | O40: 144 | P40: 96 | Q40: 240 | V40: Half | Y40: 5 | AA40: =IF(RO=2,"<< Exact Size Only","") ->  | AK40: 0 | AL40: 9072 | AM40: =$D$67 -> -4.375 | AN40: =$D$68 -> -4.625 | AO40: 0.1405164931
A41: =IF(ModelNo=B41,10,"") ->  | B41: 9054 | C41: Screen Height | D41: =(Frame_Height/2)-3.6875 -> -3.6875 | F41: 39 | G41: 9204 | H41: 9200 Custom Four Lite Patio Door | I41: 0 | J41: 0 | M41: 96 | N41: 72 | O41: 144 | P41: 96 | Q41: 240 | V41: Half | Y41: 5 | AA41: =IF(RO=2,"<< Exact Size Only","") ->  | AK41: 0 | AL41: 9073 | AM41: =MAX($D$81,$D$83) -> -4.125 | AN41: =MAX($D$82,$D$84) -> -4.625 | AO41: 0.1324869792
A42: =IF(ModelNo=B42,11,"") ->  | B42: 9054 | C42: Awning Does not Meet Egress | F42: 40 | G42: 9205 | H42: 9200 Five Foot Two Lite Patio Door | I42: 1.375 | J42: 0.5 | K42: 60 | L42: 80 | M42: 58.625 | N42: 79.5 | O42: 58.625 | P42: 79.5 | Q42: 139 | R42: Standard | V42: Half | Y42: 5 | AA42: =IF(RO=1,"<< Rough Opening Only","") -> << Rough Opening Only | AK42: 0 | AL42: 9074 | AM42: =MAX($D$113,$D$115) -> -4.25 | AN42: =MAX($D$114,$D$116) -> -4.625 | AO42: 0.1365017361
A43: =IF(ModelNo=B43,1,"") ->  | B43: 9055 | C43: Sash Width | D43: =Frame_Width-1.625 -> -1.625 | F43: 41 | G43: 9206 | H43: 9200 Six Foot Two Lite Patio Door | I43: 1.375 | J43: 0.5 | K43: 72 | L43: 80 | M43: 70.625 | N43: 79.5 | O43: 70.625 | P43: 79.5 | Q43: 151 | R43: Standard | V43: Half | Y43: 5 | AA43: << Rough Opening Only | AK43: 0 | AL43: 9075 | AM43: =MAX($D$129,$D$131) -> -4.1875 | AN43: =MAX($D$130,$D$132) -> -4.625 | AO43: 0.1344943576
A44: =IF(ModelNo=B44,2,"") ->  | B44: 9055 | C44: Sash Height | D44: =(Frame_Height/2)-1.375 -> -1.375 | F44: 42 | G44: 9208 | H44: 9200 Eight Foot Two Lite Patio Door | I44: 1.75 | J44: 0.5 | K44: 96 | L44: 80 | M44: 94.25 | N44: 79.5 | O44: 94.25 | P44: 79.5 | Q44: 175 | R44: Standard | V44: Half | Y44: 5 | AA44: << Rough Opening Only | AK44: 0 | AL44: 9079 | AM44: =MAX($D$97,$D$99) -> -4.25 | AN44: =MAX($D$98,$D$100) -> -4.625 | AO44: 0.1365017361
A45: =IF(ModelNo=B45,3,"") ->  | B45: 9055 | C45: Sash Glass Width | D45: =(Frame_Width)-4.625 -> -4.625 | F45: 43 | G45: 9209 | H45: 9200 Nine Foot Three Lite Patio Door | I45: 2.625 | J45: 0.5 | K45: 108 | L45: 80 | M45: 105.5 | N45: 79.5 | O45: 105.5 | P45: 79.5 | Q45: 186 | R45: Standard | V45: Half | Y45: 5 | AA45: << Rough Opening Only | AK45: 0 | AL45: 9102 | AM45: =$D$240 -> -3.75 | AN45: =$D$241 -> -8.9375 | AO45: 0.2327473958
A46: =IF(ModelNo=B46,4,"") ->  | B46: 9055 | C46: Sash Glass Height | D46: =(Frame_Height/2)-4.375 -> -4.375 | F46: 44 | G46: 9212 | H46: 9200 Twelve Foot Four Lite Patio Door | I46: 4.375 | J46: 0.5 | K46: 144 | L46: 80 | M46: 139.5 | N46: 79.5 | O46: 139.5 | P46: 79.5 | Q46: 220 | R46: Standard | V46: Half | Y46: 5 | AA46: << Rough Opening Only | AK46: 0 | AL46: 9103 | AM46: =$D$252 -> -3.5625 | AN46: =$D$253 -> -8.9375 | AO46: 0.221110026
A47: =IF(ModelNo=B47,5,"") ->  | B47: 9055 | C47: Screen Width | D47: =Frame_Width-4 -> -4 | F47: 45 | G47: 9222 | H47: 9200 Twelve Foot Three Lite Patio Door | I47: 3.1875 | J47: 0.5 | K47: 144 | L47: 80 | M47: 140.875 | N47: 79.5 | O47: 140.875 | P47: 79.5 | Q47: 221 | R47: Standard | V47: Half | Y47: 5 | AA47: << Rough Opening Only | AK47: 0 | AL47: 9104 | AM47: =$D$266 -> -3.25 | AN47: =$D$267 -> -8.9375 | AO47: 0.2017144097
A48: =IF(ModelNo=B48,6,"") ->  | B48: 9055 | C48: Screen Height | D48: =(Frame_Height/2)-3.6875 -> -3.6875 | F48: 46 | G48: 9275 | H48: 9200 Wisconsin Two Lite Patio Door | I48: 0.5 | J48: 0.5 | K48: 75 | L48: 80 | M48: 74.5 | N48: 79.5 | O48: 74.5 | P48: 79.5 | Q48: 154 | R48: Standard | V48: Half | Y48: 5 | AA48: << Rough Opening Only | AK48: 0 | AL48: 9105 | AM48: =$D$240 -> -3.75 | AN48: =$D$241 -> -8.9375 | AO48: 0.2327473958
A49: =IF(ModelNo=B49,7,"") ->  | B49: 9055 | C49: Awning Does not Meet Egress | F49: 47 | G49: 9402 | H49: 9400 Series Custom 2 Lite Patio Door | I49: 0 | J49: 0 | M49: 48 | N49: 72 | O49: 96 | P49: 96 | Q49: 192 | R49: 3" Sash | S49: 5" Sash | T49: French | V49: Half | Y49: 5 | AA49: =IF(RO=2,"<< Exact Size Only","") ->  | AK49: 0 | AL49: 9106 | AM49: =$D$240 -> -3.75 | AN49: =$D$241 -> -8.9375 | AO49: 0.2327473958
A50: =IF(OR(ModelNo="9014",ModelNo="9070",ModelNo="P970"),1,"") ->  | B50: 9070 | C50: Glass Width | D50: =Frame_Width-4.625 -> -4.625 | F50: 48 | G50: 9403 | H50: 9400 Series Custom 3 Lite Patio Door | I50: 0 | J50: 0 | M50: 84 | N50: 72 | O50: 144 | P50: 96 | Q50: 228 | R50: 3" Sash | S50: 5" Sash | T50: French | V50: Half | Y50: 5 | AA50: =IF(RO=2,"<< Exact Size Only","") ->  | AK50: 0 | AL50: 9108 | AM50: =$D$240 -> -3.75 | AN50: =$D$241 -> -8.9375 | AO50: 0.2327473958
A51: =IF(OR(ModelNo="9014",ModelNo="9070",ModelNo="P970"),2,"") ->  | B51: 9070 | C51: Glass Height | D51: =Frame_Height-4.625 -> -4.625 | F51: 49 | G51: 9404 | H51: 9400 Series Custom 4 Lite Patio Door | I51: 0 | J51: 0 | M51: 96 | N51: 72 | O51: 144 | P51: 96 | Q51: 240 | R51: 3" Sash | S51: 5" Sash | T51: French | V51: Half | Y51: 5 | AA51: =IF(RO=2,"<< Exact Size Only","") ->  | AK51: 0 | AL51: 9109 | AM51: =$D$252 -> -3.5625 | AN51: =$D$253 -> -8.9375 | AO51: 0.221110026
A52: =IF(OR(ModelNo="9014",ModelNo="9070",ModelNo="P970"),3,"") ->  | B52: 9070 | C52: Glass Area (sq.ft.) | D52: =(D50*D51)/144 -> 0.1485460069 | F52: 50 | G52: 9405 | H52: 9400 Series Five Foot 2 Lite Patio Door | I52: 1.375 | J52: 0.5 | K52: 60 | L52: 80 | M52: 58.625 | N52: 79.5 | O52: 58.625 | P52: 79.5 | Q52: 155 | R52: 3" Sash | S52: 5" Sash | T52: French | V52: Half | Y52: 5 | AA52: =IF(RO=1,"<< Rough Opening Only","") -> << Rough Opening Only | AK52: 0 | AL52: 9112 | AM52: =$D$266 -> -3.25 | AN52: =$D$267 -> -8.9375 | AO52: 0.2017144097
A53: =IF(OR(ModelNo="9071",ModelNo="P971"),1,"") ->  | B53: 9071 | C53: Sash Width | D53: =Frame_Width-1.625 -> -1.625 | F53: 51 | G53: 9406 | H53: 9400 Series Six Foot 2 Lite Patio Door | I53: 1.375 | J53: 0.5 | K53: 72 | L53: 80 | M53: 70.625 | N53: 79.5 | O53: 70.625 | P53: 79.5 | Q53: 167 | R53: 3" Sash | S53: 5" Sash | T53: French | V53: Half | Y53: 5 | AA53: << Rough Opening Only | AK53: 0 | AL53: 9122 | AM53: =$D$252 -> -3.5625 | AN53: =$D$253 -> -8.9375 | AO53: 0.221110026
A54: =IF(OR(ModelNo="9071",ModelNo="P971"),2,"") ->  | B54: 9071 | C54: Sash Height | D54: =Frame_Height-1.625 -> -1.625 | F54: 52 | G54: 9408 | H54: 9400 Series Eight Foot 2 Lite Patio Door | I54: 1.5 | J54: 0.5 | K54: 96 | L54: 80 | M54: 94.5 | N54: 79.5 | O54: 94.5 | P54: 79.5 | Q54: 190 | R54: 3" Sash | S54: 5" Sash | T54: French | V54: Half | Y54: 5 | AA54: << Rough Opening Only | AK54: 0 | AL54: 9175 | AM54: =$D$240 -> -3.75 | AN54: =$D$241 -> -8.9375 | AO54: 0.2327473958
A55: =IF(OR(ModelNo="9071",ModelNo="P971"),3,"") ->  | B55: 9071 | C55: Glass Width | D55: =Frame_Width-4.625 -> -4.625 | F55: 53 | G55: 9409 | H55: 9400 Series Nine Foot 3 Lite Patio Door | I55: 2.5 | J55: 0.5 | K55: 108 | L55: 80 | M55: 105.5 | N55: 79.5 | O55: 105.5 | P55: 79.5 | Q55: 201 | R55: 3" Sash | S55: 5" Sash | T55: French | V55: Half | Y55: 5 | AA55: << Rough Opening Only | AK55: 0 | AL55: 9202 | AM55: =$D$278 -> -3.6875 | AN55: =$D$279 -> -6.875 | AO55: 0.1760525174
A56: =IF(OR(ModelNo="9071",ModelNo="P971"),4,"") ->  | B56: 9071 | C56: Glass Height | D56: =Frame_Height-4.625 -> -4.625 | F56: 54 | G56: 9412 | H56: 9400 Series Twelve Foot 4 Lite Patio Door | I56: 4.5 | J56: 0.5 | K56: 144 | L56: 80 | M56: 139.5 | N56: 79.5 | O56: 139.5 | P56: 79.5 | Q56: 235 | R56: 3" Sash | S56: 5" Sash | T56: French | V56: Half | Y56: 5 | AA56: << Rough Opening Only | AK56: 0 | AL56: 9203 | AM56: =$D$290 -> -3.4375 | AN56: =$D$291 -> -6.875 | AO56: 0.1641167535
A57: =IF(OR(ModelNo="9071",ModelNo="P971"),5,"") ->  | B57: 9071 | C57: Screen Width | D57: =Frame_Width-4.0625 -> -4.0625 | F57: 55 | G57: 9422 | H57: 9400 Series Twelve Foot 3 Lite Patio Door | I57: 3.125 | J57: 0.5 | K57: 144 | L57: 80 | M57: 140.875 | N57: 79.5 | O57: 140.875 | P57: 79.5 | Q57: 237 | R57: 3" Sash | S57: 5" Sash | T57: French | V57: Half | Y57: 5 | AA57: << Rough Opening Only | AK57: 0 | AL57: 9204 | AM57: =$D$302 -> -3.1875 | AN57: =$D$303 -> -6.875 | AO57: 0.1521809896
A58: =IF(OR(ModelNo="9071",ModelNo="P971"),6,"") ->  | B58: 9071 | C58: Screen Height | D58: =Frame_Height-4 -> -4 | F58: 56 | G58: 9475 | H58: 9400 Series Wisconsin 2 Lite Patio Door | I58: 0.5 | J58: 0.5 | K58: 75 | L58: 80 | M58: 74.5 | N58: 79.5 | O58: 74.5 | P58: 79.5 | Q58: 155 | R58: 3" Sash | S58: 5" Sash | T58: French | V58: Half | Y58: 5 | AA58: << Rough Opening Only | AK58: 0 | AL58: 9205 | AM58: =$D$278 -> -3.6875 | AN58: =$D$279 -> -6.875 | AO58: 0.1760525174
A59: =IF(OR(ModelNo="9071",ModelNo="P971"),7,"") ->  | B59: 9071 | C59: Egress Opening Width (Standard Hinge) | D59: =Frame_Width-11.25 -> -11.25 | F59: 57 | G59: P601 | H59: Preservation Bay-Bow Double Hung | I59: 0 | J59: 0 | M59: 16 | N59: 26 | O59: 52 | P59: 84 | Q59: 136 | R59: Standard | S59: Oriel (2/3 - 1/3) | T59: Cottage (1/3 - 2/3) | U59: Custom | V59: Half | W59: Full | X59: Locking | Y59: 5 | AA59: =IF(RO=2,"<< Exact Size Only","") ->  | AK59: 0 | AL59: 9206 | AM59: =$D$278 -> -3.6875 | AN59: =$D$279 -> -6.875 | AO59: 0.1760525174
A60: =IF(OR(ModelNo="9071",ModelNo="P971"),8,"") ->  | B60: 9071 | C60: Egress Opening Height (Standard Hinge) | D60: =Frame_Height-4.375 -> -4.375 | F60: 58 | G60: P970 | H60: Preservation Bay-Bow Picture Window | I60: 0 | J60: 0 | M60: 13 | N60: 13 | O60: 96 | P60: 84 | Q60: 154 | R60: Standard | Y60: 5 | AA60: =IF(RO=2,"<< Exact Size Only","") ->  | AK60: 0 | AL60: 9208 | AM60: =$D$278 -> -3.6875 | AN60: =$D$279 -> -6.875 | AO60: 0.1760525174
A61: =IF(OR(ModelNo="9071",ModelNo="P971"),9,"") ->  | B61: 9071 | C61: Egress Opening Area w/Standard Hinge (sq.ft.) | D61: =(D59*D60)/144 -> 0.341796875 | F61: 59 | G61: P971 | H61: Preservation Bay-Bow Single Vent Casement | I61: 0 | J61: 0 | M61: 16 | N61: 19 | O61: 36 | P61: 78 | Q61: 114 | R61: Standard | W61: Full | Y61: 5 | AA61: =IF(RO=2,"<< Exact Size Only","") ->  | AK61: 0 | AL61: 9209 | AM61: =$D$290 -> -3.4375 | AN61: =$D$291 -> -6.875 | AO61: 0.1641167535
A62: =IF(OR(ModelNo="9071",ModelNo="P971"),10,"") ->  | B62: 9071 | C62: Egress Opening Width (Egress Hinge) | D62: =IF(D53<22.375,"N/A",Frame_Width-6.8125) -> N/A | F62: 1 | G62: =VLOOKUP(Model_Select,$F$3:$AA$61,2,FALSE) -> Select a Model | H62: =VLOOKUP(Model_Select,$F$3:$AA$61,3,FALSE) -> 0 | I62: =VLOOKUP(Model_Select,$F$3:$AA$61,4,FALSE) -> 0 | J62: =VLOOKUP(Model_Select,$F$3:$AA$61,5,FALSE) -> 0 | K62: =VLOOKUP(Model_Select,$F$3:$AA$61,6,FALSE) -> 0 | L62: =VLOOKUP(Model_Select,$F$3:$AA$61,7,FALSE) -> 0 | M62: =VLOOKUP(Model_Select,$F$3:$AA$61,8,FALSE) -> 0 | N62: =VLOOKUP(Model_Select,$F$3:$AA$61,9,FALSE) -> 0 | O62: =VLOOKUP(Model_Select,$F$3:$AA$61,10,FALSE) -> 0 | P62: =VLOOKUP(Model_Select,$F$3:$AA$61,11,FALSE) -> 0 | Q62: =VLOOKUP(Model_Select,$F$3:$AA$61,12,FALSE) -> 0 | R62: =VLOOKUP(Model_Select,$F$3:$AA$61,13,FALSE) -> 0 | S62: =VLOOKUP(Model_Select,$F$3:$AA$61,14,FALSE) -> 0 | T62: =VLOOKUP(Model_Select,$F$3:$AA$61,15,FALSE) -> 0 | U62: =VLOOKUP(Model_Select,$F$3:$AA$61,16,FALSE) -> 0 | V62: =VLOOKUP(Model_Select,$F$3:$AA$61,17,FALSE) -> 0 | W62: =VLOOKUP(Model_Select,$F$3:$AA$61,18,FALSE) -> 0 | X62: =VLOOKUP(Model_Select,$F$3:$AA$61,19,FALSE) -> 0 | Y62: =VLOOKUP(Model_Select,$F$3:$AA$61,20,FALSE) -> 0 | Z62: =VLOOKUP(Model_Select,$F$3:$AA$61,21,FALSE) -> 0 | AA62: =VLOOKUP(Model_Select,$F$3:$AA$61,22,FALSE) -> 0 | AK62: 0 | AL62: 9212 | AM62: =$D$302 -> -3.1875 | AN62: =$D$303 -> -6.875 | AO62: 0.1521809896
A63: =IF(OR(ModelNo="9071",ModelNo="P971"),11,"") ->  | B63: 9071 | C63: Egress Opening Height (Egress Hinge) | D63: =IF(D53<22.375,"N/A",Frame_Height-4.375) -> N/A | L63: =IF(OR(ModelNo="9405",ModelNo="9406",ModelNo="9408",ModelNo="9409",ModelNo="9412",ModelNo="9422"),1,0) -> 0 | AK63: 0 | AL63: 9222 | AM63: =$D$290 -> -3.4375 | AN63: =$D$291 -> -6.875 | AO63: 0.1641167535
A64: =IF(OR(ModelNo="9071",ModelNo="P971"),12,"") ->  | B64: 9071 | C64: Egress Opening Area w/Egress Hinge (sq.ft.) | D64: =IF(D53<22.375,"N/A",(D62*D63)/144) -> N/A | L64: =IF(HCONTROL=1,96,"") ->  | AK64: 0 | AL64: 9275 | AM64: =$D$278 -> -3.6875 | AN64: =$D$279 -> -6.875 | AO64: 0.1760525174
A65: =IF(ModelNo=B65,1,"") ->  | B65: 9072 | C65: Sash Width | D65: =(Frame_Width/2)-1.375 -> -1.375 | AK65: 0 | AL65: P601 | AM65: =MAX($D$145,$D$147) -> -6.71875 | AN65: =MAX($D$146,$D$148) -> -3.96875 | AO65: 0.1851738824 | AP65: =IF(ISERROR(OR($D$152,$D$154)),0,IF(AND(OR(Glass=5,Glass=6),OR($D$152=0,$D$154=0)),1,0)) -> 0
A66: =IF(ModelNo=B66,2,"") ->  | B66: 9072 | C66: Sash Height | D66: =Frame_Height-1.625 -> -1.625 | AK66: 0 | AL66: P970 | AM66: =$D$50 -> -4.625 | AN66: =$D$51 -> -4.625 | AO66: 0.1485460069
A67: =IF(ModelNo=B67,3,"") ->  | B67: 9072 | C67: Glass Width | D67: =(Frame_Width/2)-4.375 -> -4.375 | AL67: P971 | AM67: =$D$55 -> -4.625 | AN67: =$D$56 -> -4.625 | AO67: =(AM67*AN67)/144 -> 0.1485460069
A68: =IF(ModelNo=B68,4,"") ->  | B68: 9072 | C68: Glass Height | D68: =Frame_Height-4.625 -> -4.625 | AL68: =IF(ISERROR(VLOOKUP(ModelNo,TIGTABLE,2,FALSE)),"",ModelNo) ->  | AM68: =IF(ISERROR(VLOOKUP(TIGMODEL,TIGTABLE,3,FALSE)),"",VLOOKUP(TIGMODEL,TIGTABLE,3,FALSE)) ->  | AN68: =IF(ISERROR(VLOOKUP(TIGMODEL,TIGTABLE,4,FALSE)),"",VLOOKUP(TIGMODEL,TIGTABLE,4,FALSE)) ->  | AO68: =IF(ISERROR(VLOOKUP(TIGMODEL,TIGTABLE,5,FALSE)),"",VLOOKUP(TIGMODEL,TIGTABLE,5,FALSE)) ->  | AP68: =IF(ISERROR(VLOOKUP(TIGMODEL,TIGTABLE,6,FALSE)),"",VLOOKUP(TIGMODEL,TIGTABLE,6,FALSE)) -> 
A69: =IF(ModelNo=B69,5,"") ->  | B69: 9072 | C69: Screen Width | D69: =(Frame_Width/2)-3.8125 -> -3.8125
A70: =IF(ModelNo=B70,6,"") ->  | B70: 9072 | C70: Screen Height | D70: =Frame_Height-4 -> -4
A71: =IF(ModelNo=B71,7,"") ->  | B71: 9072 | C71: Egress Opening Width (Standard Hinge) | D71: =(Frame_Width/2)-11 -> -11
A72: =IF(ModelNo=B72,8,"") ->  | B72: 9072 | C72: Egress Opening Height (Standard Hinge) | D72: =Frame_Height-4.375 -> -4.375
A73: =IF(ModelNo=B73,9,"") ->  | B73: 9072 | C73: Egress Opening Area w/Standard Hinge (sq.ft.) | D73: =(D71*D72)/144 -> 0.3342013889
A74: =IF(ModelNo=B74,10,"") ->  | B74: 9072 | C74: Egress Opening Width (Egress Hinge) | D74: =IF(D65<22.375,"N/A",(Frame_Width/2)-6.5625) -> N/A
A75: =IF(ModelNo=B75,11,"") ->  | B75: 9072 | C75: Egress Opening Height (Egress Hinge) | D75: =IF(D65<22.375,"N/A",Frame_Height-4.375) -> N/A
A76: =IF(ModelNo=B76,12,"") ->  | B76: 9072 | C76: Egress Opening Area w/Egress Hinge (sq.ft.) | D76: =IF(D65<22.375,"N/A",(D74*D75)/144) -> N/A
A77: =IF(ModelNo=B77,1,"") ->  | B77: 9073 | C77: Operating Sash Width | D77: =(Frame_Width/4)-1.375 -> -1.375
A78: =IF(ModelNo=B78,2,"") ->  | B78: 9073 | C78: Operating Sash Height | D78: =Frame_Height-1.625 -> -1.625
A79: =IF(ModelNo=B79,3,"") ->  | B79: 9073 | C79: Fixed Sash Width | D79: =(Frame_Width/2)-1.125 -> -1.125
A80: =IF(ModelNo=B80,4,"") ->  | B80: 9073 | C80: Fixed Sash Height | D80: =Frame_Height-1.625 -> -1.625
A81: =IF(ModelNo=B81,5,"") ->  | B81: 9073 | C81: Operating Sash Glass Width | D81: =(Frame_Width/4)-4.375 -> -4.375
A82: =IF(ModelNo=B82,6,"") ->  | B82: 9073 | C82: Operating Sash Glass Height | D82: =Frame_Height-4.625 -> -4.625
A83: =IF(ModelNo=B83,7,"") ->  | B83: 9073 | C83: Fixed Sash Glass Width | D83: =(Frame_Width/2)-4.125 -> -4.125
A84: =IF(ModelNo=B84,8,"") ->  | B84: 9073 | C84: Fixed Sash Glass Height | D84: =Frame_Height-4.625 -> -4.625
A85: =IF(ModelNo=B85,9,"") ->  | B85: 9073 | C85: Screen Width | D85: =(Frame_Width/4)-3.8125 -> -3.8125
A86: =IF(ModelNo=B86,10,"") ->  | B86: 9073 | C86: Screen Height | D86: =Frame_Height-4 -> -4
A87: =IF(ModelNo=B87,11,"") ->  | B87: 9073 | C87: Egress Opening Width (Standard Hinge) | D87: =(Frame_Width/4)-11 -> -11
A88: =IF(ModelNo=B88,12,"") ->  | B88: 9073 | C88: Egress Opening Height (Standard Hinge) | D88: =Frame_Height-4.375 -> -4.375
A89: =IF(ModelNo=B89,13,"") ->  | B89: 9073 | C89: Egress Opening Area w/Standard Hinge (sq.ft.) | D89: =(D87*D88)/144 -> 0.3342013889
A90: =IF(ModelNo=B90,14,"") ->  | B90: 9073 | C90: Egress Opening Width (Egress Hinge) | D90: =IF(D77<22.375,"N/A",(Frame_Width/4)-6.5625) -> N/A
A91: =IF(ModelNo=B91,15,"") ->  | B91: 9073 | C91: Egress Opening Height (Egress Hinge) | D91: =IF(D77<22.375,"N/A",Frame_Height-4.375) -> N/A
A92: =IF(ModelNo=B92,16,"") ->  | B92: 9073 | C92: Egress Opening Area w/Egress Hinge (sq.ft.) | D92: =IF(D77<22.375,"N/A",(D90*D91)/144) -> N/A
A93: =IF(ModelNo=B93,1,"") ->  | B93: 9079 | C93: Operating Sash Width | D93: =TRUNC(((Frame_Width/3)-1.291)*16+0.5)/16 -> -1.25
A94: =IF(ModelNo=B94,2,"") ->  | B94: 9079 | C94: Operating Sash Height | D94: =Frame_Height-1.625 -> -1.625
A95: =IF(ModelNo=B95,3,"") ->  | B95: 9079 | C95: Fixed Sash Width | D95: =TRUNC(((Frame_Width/3)-1.291)*16+0.5)/16 -> -1.25
A96: =IF(ModelNo=B96,4,"") ->  | B96: 9079 | C96: Fixed Sash Height | D96: =Frame_Height-1.625 -> -1.625
A97: =IF(ModelNo=B97,5,"") ->  | B97: 9079 | C97: Operating Sash Glass Width | D97: =TRUNC(((Frame_Width/3)-4.291)*16+0.5)/16 -> -4.25
A98: =IF(ModelNo=B98,6,"") ->  | B98: 9079 | C98: Operating Sash Glass Height | D98: =Frame_Height-4.625 -> -4.625
A99: =IF(ModelNo=B99,7,"") ->  | B99: 9079 | C99: Fixed Sash Glass Width | D99: =TRUNC(((Frame_Width/3)-4.291)*16+0.5)/16 -> -4.25
A100: =IF(ModelNo=B100,8,"") ->  | B100: 9079 | C100: Fixed Sash Glass Height | D100: =Frame_Height-4.625 -> -4.625
A101: =IF(ModelNo=B101,9,"") ->  | B101: 9079 | C101: Screen Width | D101: =TRUNC(((Frame_Width/3)-3.666)*32+0.5)/32 -> -3.625
A102: =IF(ModelNo=B102,10,"") ->  | B102: 9079 | C102: Screen Height | D102: =Frame_Height-4 -> -4
A103: =IF(ModelNo=B103,11,"") ->  | B103: 9079 | C103: Egress Opening Width (Standard Hinge) | D103: =TRUNC(((Frame_Width/3)-10.916)*16+0.5)/16 -> -10.875
A104: =IF(ModelNo=B104,12,"") ->  | B104: 9079 | C104: Egress Opening Height (Standard Hinge) | D104: =Frame_Height-4.375 -> -4.375
A105: =IF(ModelNo=B105,13,"") ->  | B105: 9079 | C105: Egress Opening Area w/Standard Hinge (sq.ft.) | D105: =(D103*D104)/144 -> 0.3304036458
A106: =IF(ModelNo=B106,14,"") ->  | B106: 9079 | C106: Egress Opening Width (Egress Hinge) | D106: =IF(D93<22.375,"N/A",TRUNC(((Frame_Width/3)-6.4785)*16+0.5)/16) -> N/A
A107: =IF(ModelNo=B107,15,"") ->  | B107: 9079 | C107: Egress Opening Height (Egress Hinge) | D107: =IF(D93<22.375,"N/A",Frame_Height-4.375) -> N/A
A108: =IF(ModelNo=B108,16,"") ->  | B108: 9079 | C108: Egress Opening Area w/Egress Hinge (sq.ft.) | D108: =IF(D93<22.375,"N/A",(D106*D107)/144) -> N/A
A109: =IF(ModelNo=B109,1,"") ->  | B109: 9074 | C109: Operating Sash Width | D109: =(Frame_Width/4)-1.25 -> -1.25
A110: =IF(ModelNo=B110,2,"") ->  | B110: 9074 | C110: Operating Sash Height | D110: =Frame_Height-1.625 -> -1.625
A111: =IF(ModelNo=B111,3,"") ->  | B111: 9074 | C111: Fixed Sash Width | D111: =(Frame_Width/4)-1.25 -> -1.25
A112: =IF(ModelNo=B112,4,"") ->  | B112: 9074 | C112: Fixed Sash Height | D112: =Frame_Height-1.625 -> -1.625
A113: =IF(ModelNo=B113,5,"") ->  | B113: 9074 | C113: Operating Sash Glass Width | D113: =(Frame_Width/4)-4.25 -> -4.25
A114: =IF(ModelNo=B114,6,"") ->  | B114: 9074 | C114: Operating Sash Glass Height | D114: =Frame_Height-4.625 -> -4.625
A115: =IF(ModelNo=B115,7,"") ->  | B115: 9074 | C115: Fixed Sash Glass Width | D115: =(Frame_Width/4)-4.25 -> -4.25
A116: =IF(ModelNo=B116,8,"") ->  | B116: 9074 | C116: Fixed Sash Glass Height | D116: =Frame_Height-4.625 -> -4.625
A117: =IF(ModelNo=B117,9,"") ->  | B117: 9074 | C117: Screen Width | D117: =(Frame_Width/4)-3.625 -> -3.625
A118: =IF(ModelNo=B118,10,"") ->  | B118: 9074 | C118: Screen Height | D118: =Frame_Height-4 -> -4
A119: =IF(ModelNo=B119,11,"") ->  | B119: 9074 | C119: Egress Opening Width (Standard Hinge) | D119: =(Frame_Width/4)-10.875 -> -10.875
A120: =IF(ModelNo=B120,12,"") ->  | B120: 9074 | C120: Egress Opening Height (Standard Hinge) | D120: =Frame_Height-4.375 -> -4.375
A121: =IF(ModelNo=B121,13,"") ->  | B121: 9074 | C121: Egress Opening Area w/Standard Hinge (sq.ft.) | D121: =(D119*D120)/144 -> 0.3304036458
A122: =IF(ModelNo=B122,14,"") ->  | B122: 9074 | C122: Egress Opening Width (Egress Hinge) | D122: =IF(D109<22.375,"N/A",(Frame_Width/4)-6.4375) -> N/A
A123: =IF(ModelNo=B123,15,"") ->  | B123: 9074 | C123: Egress Opening Height (Egress Hinge) | D123: =IF(D109<22.375,"N/A",Frame_Height-4.375) -> N/A
A124: =IF(ModelNo=B124,16,"") ->  | B124: 9074 | C124: Egress Opening Area w/Egress Hinge (sq.ft.) | D124: =IF(D109<22.375,"N/A",(D122*D123)/144) -> N/A
A125: =IF(ModelNo=B125,1,"") ->  | B125: 9075 | C125: Operating Sash Width | D125: =TRUNC(((Frame_Width/5)-1.225)*16+0.5)/16 -> -1.1875
A126: =IF(ModelNo=B126,2,"") ->  | B126: 9075 | C126: Operating Sash Height | D126: =Frame_Height-1.625 -> -1.625
A127: =IF(ModelNo=B127,3,"") ->  | B127: 9075 | C127: Fixed Sash Width | D127: =TRUNC(((Frame_Width/5)-1.225)*16+0.5)/16 -> -1.1875
A128: =IF(ModelNo=B128,4,"") ->  | B128: 9075 | C128: Fixed Sash Height | D128: =Frame_Height-1.625 -> -1.625
A129: =IF(ModelNo=B129,5,"") ->  | B129: 9075 | C129: Operating Sash Glass Width | D129: =TRUNC(((Frame_Width/5)-4.225)*16+0.5)/16 -> -4.1875
A130: =IF(ModelNo=B130,6,"") ->  | B130: 9075 | C130: Operating Sash Glass Height | D130: =Frame_Height-4.625 -> -4.625
A131: =IF(ModelNo=B131,7,"") ->  | B131: 9075 | C131: Fixed Sash Glass Width | D131: =TRUNC(((Frame_Width/5)-4.225)*16+0.5)/16 -> -4.1875
A132: =IF(ModelNo=B132,8,"") ->  | B132: 9075 | C132: Fixed Sash Glass Height | D132: =Frame_Height-4.625 -> -4.625
A133: =IF(ModelNo=B133,9,"") ->  | B133: 9075 | C133: Screen Width | D133: =TRUNC(((Frame_Width/5)-3.7625)*16+0.5)/16 -> -3.6875
A134: =IF(ModelNo=B134,10,"") ->  | B134: 9075 | C134: Screen Height | D134: =Frame_Height-4 -> -4
A135: =IF(ModelNo=B135,11,"") ->  | B135: 9075 | C135: Egress Opening Width (Standard Hinge) | D135: =TRUNC(((Frame_Width/5)-10.875)*16+0.5)/16 -> -10.8125
A136: =IF(ModelNo=B136,12,"") ->  | B136: 9075 | C136: Egress Opening Height (Standard Hinge) | D136: =Frame_Height-4.375 -> -4.375
A137: =IF(ModelNo=B137,13,"") ->  | B137: 9075 | C137: Egress Opening Area w/Standard Hinge (sq.ft.) | D137: =(D135*D136)/144 -> 0.3285047743
A138: =IF(ModelNo=B138,14,"") ->  | B138: 9075 | C138: Egress Opening Width (Egress Hinge) | D138: =IF(D125<22.375,"N/A",TRUNC(((Frame_Width/5)-6.4375)*16+0.5)/16) -> N/A
A139: =IF(ModelNo=B139,15,"") ->  | B139: 9075 | C139: Egress Opening Height (Egress Hinge) | D139: =IF(D125<22.375,"N/A",Frame_Height-4.375) -> N/A
A140: =IF(ModelNo=B140,16,"") ->  | B140: 9075 | C140: Egress Opening Area w/Egress Hinge (sq.ft.) | D140: =IF(D125<22.375,"N/A",(D138*D139)/144) -> N/A
A141: =IF(OR(ModelNo="9001",ModelNo="P601"),1,"") ->  | B141: 9001 | C141: Top Sash Width | D141: =Frame_Width-4.875 -> -4.875
A142: =IF(OR(ModelNo="9001",ModelNo="P601"),2,"") ->  | B142: 9001 | C142: Top Sash Height | D142: =INT((Balance!$J$18-2.22)*32)/32 -> -2.25
A143: =IF(OR(ModelNo="9001",ModelNo="P601"),3,"") ->  | B143: 9001 | C143: Bottom Sash Width | D143: =Frame_Width-3.875 -> -3.875
A144: =IF(OR(ModelNo="9001",ModelNo="P601"),4,"") ->  | B144: 9001 | C144: Bottom Sash Height | D144: =INT((Balance!$J$19-1.22)*32)/32 -> -1.25
A145: =IF(OR(ModelNo="9001",ModelNo="P601"),5,"") ->  | B145: 9001 | C145: Top Glass Width | D145: =Balance!$J$21 -> -6.71875
A146: =IF(OR(ModelNo="9001",ModelNo="P601"),6,"") ->  | B146: 9001 | C146: Top Glass Height | D146: =Balance!$J$23 -> -3.96875
A147: =IF(OR(ModelNo="9001",ModelNo="P601"),7,"") ->  | B147: 9001 | C147: Bottom Glass Width | D147: =Balance!$J$22 -> -6.71875
A148: =IF(OR(ModelNo="9001",ModelNo="P601"),8,"") ->  | B148: 9001 | C148: Bottom Glass Height | D148: =Balance!$J$24 -> -3.96875
A149: =IF(OR(ModelNo="9001",ModelNo="P601"),9,"") ->  | B149: 9001 | C149: Screen Width | D149: =Frame_Width-5.125 -> -5.125
A150: =IF(OR(ModelNo="9001",ModelNo="P601"),10,"") ->  | B150: 9001 | C150: Screen Height | D150: =IF(Screen="Full",Frame_Height-4.6875,IF(Screen="Locking",(INT((Balance!$J$19-2.34375)*16+0.5)/16)+0.875,INT((Balance!$J$19-1.25)*16+0.5)/16)) -> -1.25
A151: =IF(OR(ModelNo="9001",ModelNo="P601"),11,"") ->  | B151: 9001 | C151: Top Sash Weight (Plus 5 lb) | D151: =TOP_WGT&" "&"lb" -> 
A152: =IF(OR(ModelNo="9001",ModelNo="P601"),12,"") ->  | B152: 9001 | C152: Top Balance Size (Block & Tackle) | D152: =IF(TOP_TUBE=0,"N/A",TOP_TUBE) -> 
A153: =IF(OR(ModelNo="9001",ModelNo="P601"),13,"") ->  | B153: 9001 | C153: Bottom Sash Weight | D153: =BTM_WGT&" "&"lb" -> 
A154: =IF(OR(ModelNo="9001",ModelNo="P601"),14,"") ->  | B154: 9001 | C154: Bottom Balance Size (Block & Tackle) | D154: =IF(BTM_TUBE=0,"N/A",BTM_TUBE) -> 
A155: =IF(OR(ModelNo="9001",ModelNo="P601"),15,"") ->  | B155: 9001 | C155: Egress Opening Width | D155: =EW -> 
A156: =IF(OR(ModelNo="9001",ModelNo="P601"),16,"") ->  | B156: 9001 | C156: Egress Opening Height | D156: =EH -> 
A157: =IF(OR(ModelNo="9001",ModelNo="P601"),17,"") ->  | B157: 9001 | C157: Egress Opening Area (sq.ft.) | D157: =EO -> 
A158: =IF(ModelNo=B158,1,"") ->  | B158: 9002 | C158: Sash Width | D158: =(Frame_Width/2)-0.875 -> -0.875
A159: =IF(ModelNo=B159,2,"") ->  | B159: 9002 | C159: Sash Height | D159: =Frame_Height-4.625 -> -4.625
A160: =IF(ModelNo=B160,3,"") ->  | B160: 9002 | C160: Roller Track Length | D160: =Frame_Width-3.25 -> -3.25
A161: =IF(ModelNo=B161,4,"") ->  | B161: 9002 | C161: Glass Width | D161: =Frame_Width/2-3.75 -> -3.75
A162: =IF(ModelNo=B162,5,"") ->  | B162: 9002 | C162: Glass Height | D162: =Frame_Height-7.4375 -> -7.4375
A163: =IF(ModelNo=B163,6,"") ->  | B163: 9002 | C163: Screen Width | D163: =IF(Screen="Full",INT((Frame_Width-4.882)*16+0.5)/16,IF(Screen="Half",INT(((Frame_Width/2)-2.5)*16+0.5)/16,"N/A")) -> N/A
A164: =IF(ModelNo=B164,7,"") ->  | B164: 9002 | C164: Screen Height | D164: =INT((Frame_Height-4.651)*16+0.5)/16 -> -4.625
A165: =IF(ModelNo=B165,8,"") ->  | B165: 9002 | C165: Egress Opening Width | D165: =TRUNC((Frame_Width/2-6.438)*16+0.5)/16 -> -6.375
A166: =IF(ModelNo=B166,9,"") ->  | B166: 9002 | C166: Egress Opening Height | D166: =TRUNC((Frame_Height-5.75)*16+0.5)/16 -> -5.6875
A167: =IF(ModelNo=B167,10,"") ->  | B167: 9002 | C167: Egress Opening Area (sq.ft.) | D167: =(D165*D166)/144 -> 0.2517903646
A168: =IF(ModelNo=B168,1,"") ->  | B168: 9003 | C168: Operating Sash Width | D168: =INT(((Frame_Width/4)+0.6515)*16+0.5)/16 -> 0.625
A169: =IF(ModelNo=B169,2,"") ->  | B169: 9003 | C169: Operating Sash Height | D169: =INT((Frame_Height-4.656)*16+0.5)/16 -> -4.625
A170: =IF(ModelNo=B170,3,"") ->  | B170: 9003 | C170: Fixed Sash Width | D170: =INT(((Frame_Width-(2*(Frame_Width/4)))-1.52)*16+0.5)/16 -> -1.5
A171: =IF(ModelNo=B171,4,"") ->  | B171: 9003 | C171: Fixed Sash Height | D171: =Frame_Height-4.625 -> -4.625
A172: =IF(ModelNo=B172,5,"") ->  | B172: 9003 | C172: Roller Track Length | D172: =Frame_Width-3.125 -> -3.125
A173: =IF(ModelNo=B173,6,"") ->  | B173: 9003 | C173: Operating Sash Glass Width | D173: =INT((D168-2.875)*16+0.5)/16 -> -2.25
A174: =IF(ModelNo=B174,7,"") ->  | B174: 9003 | C174: Operating Sash Glass Height | D174: =Frame_Height-7.5 -> -7.5
A175: =IF(ModelNo=B175,8,"") ->  | B175: 9003 | C175: Fixed Sash Glass Width | D175: =INT((D170-2.875)*16+0.5)/16 -> -4.375
A176: =IF(ModelNo=B176,9,"") ->  | B176: 9003 | C176: Fixed Sash Glass Height | D176: =INT((D169-2.814)*16+0.5)/16 -> -7.4375
A177: =IF(ModelNo=B177,10,"") ->  | B177: 9003 | C177: Screen Width | D177: =IF(Screen="Full",INT((Frame_Width-4.882)*16+0.5)/16,IF(Screen="Half",INT(((Frame_Width/4)-0.9405)*16+0.5)/16,"N/A")) -> N/A
A178: =IF(ModelNo=B178,11,"") ->  | B178: 9003 | C178: Screen Height | D178: =INT((Frame_Height-4.65)*16+0.5)/16 -> -4.625
A179: =IF(ModelNo=B179,12,"") ->  | B179: 9003 | C179: Egress Opening Width | D179: =(Frame_Width/4)-2.125 -> -2.125
A180: =IF(ModelNo=B180,13,"") ->  | B180: 9003 | C180: Egress Opening Height | D180: =Frame_Height-5.75 -> -5.75
A181: =IF(ModelNo=B181,14,"") ->  | B181: 9003 | C181: Egress Opening Area (sq.ft.) | D181: =(D179*D180)/144 -> 0.08485243056
A182: =IF(ModelNo=B182,1,"") ->  | B182: 9009 | C182: Operating Sash Width | D182: =(INT(((Frame_Width/3)-0.656)*16)/16)+0.625 -> -0.0625
A183: =IF(ModelNo=B183,2,"") ->  | B183: 9009 | C183: Operating Sash Height | D183: =Frame_Height-4.625 -> -4.625
A184: =IF(ModelNo=B184,3,"") ->  | B184: 9009 | C184: Fixed Sash Width | D184: =(INT((((INT(((Frame_Width/3)-0.656)*16)/16))+1.938)*16+0.5)/16)-1.3125 -> -0.0625
A185: =IF(ModelNo=B185,4,"") ->  | B185: 9009 | C185: Fixed Sash Height | D185: =Frame_Height-4.625 -> -4.625
A186: =IF(ModelNo=B186,5,"") ->  | B186: 9009 | C186: Roller Track Length | D186: =Frame_Width-3.125 -> -3.125
A187: =IF(ModelNo=B187,6,"") ->  | B187: 9009 | C187: Operating Sash Glass Width | D187: =(INT((Frame_Width/3-0.656)*16)/16)-2.25 -> -2.9375
A188: =IF(ModelNo=B188,7,"") ->  | B188: 9009 | C188: Operating Sash Glass Height | D188: =Frame_Height-7.4375 -> -7.4375
A189: =IF(ModelNo=B189,8,"") ->  | B189: 9009 | C189: Fixed Sash Glass Width | D189: =(INT((Frame_Width/3-0.656)*16)/16)-2.25 -> -2.9375
A190: =IF(ModelNo=B190,9,"") ->  | B190: 9009 | C190: Fixed Sash Glass Height | D190: =Frame_Height-7.4375 -> -7.4375
A191: =IF(ModelNo=B191,10,"") ->  | B191: 9009 | C191: Screen Width | D191: =IF(Screen="Full",INT((Frame_Width-4.882)*16+0.5)/16,IF(Screen="Half",INT(((TRUNC(((Frame_Width/3)-0.656)*16)/16)-1.125)*16+0.5)/16,"N/A")) -> N/A
A192: =IF(ModelNo=B192,11,"") ->  | B192: 9009 | C192: Screen Height | D192: =INT((Frame_Height-4.65)*16+0.5)/16 -> -4.625
A193: =IF(ModelNo=B193,12,"") ->  | B193: 9009 | C193: Egress Opening Width | D193: =(Frame_Width/3)-4.625 -> -4.625
A194: =IF(ModelNo=B194,13,"") ->  | B194: 9009 | C194: Egress Opening Height | D194: =Frame_Height-5.75 -> -5.75
A195: =IF(ModelNo=B195,14,"") ->  | B195: 9009 | C195: Egress Opening Area (sq.ft.) | D195: =(D193*D194)/144 -> 0.1846788194
A196: =IF(ModelNo=B196,1,"") ->  | B196: 9022 | C196: Inner Sash Width | D196: =TRUNC(((Frame_Width/2)-1.2925)*32+0.5)/32 -> -1.25
A197: =IF(ModelNo=B197,2,"") ->  | B197: 9022 | C197: Inner Sash Height | D197: =Frame_Height-3.9375 -> -3.9375
A198: =IF(ModelNo=B198,3,"") ->  | B198: 9022 | C198: Outer Sash Width | D198: =TRUNC(((Frame_Width/2)-2.2925)*32+0.5)/32 -> -2.25
A199: =IF(ModelNo=B199,4,"") ->  | B199: 9022 | C199: Outer Sash Height | D199: =Frame_Height-4.9375 -> -4.9375
A200: =IF(ModelNo=B200,5,"") ->  | B200: 9022 | C200: Inner Glass Width | D200: =TRUNC((D196-2.895)*32+0.5)/32 -> -4.125
... 205 more rows
